{"text_format":"3","workbook":"xlsx","n_sheets":2,"sheets":["Urnik predavanj","Seznam predavanj"],"not_rendered":{"defined_names":17},"read":"whole","date_system":"1900"}

{"sheet":"Urnik predavanj","index":0,"n_rows":56,"n_cols":9,"rows_kept":56,"merged":[[0,1,1,5],[0,8,1,8]]}
[null,"URNIK PREDAVANJ",{"$nulls":4},"ZAČETEK RAZPOREDA","ČASOVNI INTERVAL","Seznam predavanj"]
[{"$nulls":6},"08:00:00","15 MIN"]
[null,"ČAS","NEDELJA","PONEDELJEK","TOREK","SREDA","ČETRTEK","PETEK","SOBOTA"]
[null,{"$f":"ZačetekRazporeda","v":"08:00:00"},{"$f":"IFERROR(INDEX(SeznamPredavanj[],MATCH(SUMPRODUCT((SeznamPredavanj[DAN]=UrnikPredavanj[[#Headers],[NEDELJA]])*(ROUNDDOWN($B4,10)>=ROUNDDOWN(SeznamPredavanj[ČAS ZAČETKA],10))*($B4<=SeznamPredavanj[ČAS KONCA]),SeznamPredavanj[EDINSTVENO]),SeznamPredavanj[EDINSTVENO],0),2),0)","v":0},{"$f":"IFERROR(INDEX(SeznamPredavanj[],MATCH(SUMPRODUCT((SeznamPredavanj[DAN]=UrnikPredavanj[[#Headers],[PONEDELJEK]])*(ROUNDDOWN($B4,10)>=ROUNDDOWN(SeznamPredavanj[ČAS ZAČETKA],10))*($B4<=SeznamPredavanj[ČAS KONCA]),SeznamPredavanj[EDINSTVENO]),SeznamPredavanj[EDINSTVENO],0),2),0)","v":0},{"$f":"IFERROR(INDEX(SeznamPredavanj[],MATCH(SUMPRODUCT((SeznamPredavanj[DAN]=UrnikPredavanj[[#Headers],[TOREK]])*(ROUNDDOWN($B4,10)>=ROUNDDOWN(SeznamPredavanj[ČAS ZAČETKA],10))*($B4<=SeznamPredavanj[ČAS KONCA]),SeznamPredavanj[EDINSTVENO]),SeznamPredavanj[EDINSTVENO],0),2),0)","v":0},{"$f":"IFERROR(INDEX(SeznamPredavanj[],MATCH(SUMPRODUCT((SeznamPredavanj[DAN]=UrnikPredavanj[[#Headers],[SREDA]])*(ROUNDDOWN($B4,10)>=ROUNDDOWN(SeznamPredavanj[ČAS ZAČETKA],10))*($B4<=SeznamPredavanj[ČAS KONCA]),SeznamPredavanj[EDINSTVENO]),SeznamPredavanj[EDINSTVENO],0),2),0)","v":0},{"$f":"IFERROR(INDEX(SeznamPredavanj[],MATCH(SUMPRODUCT((SeznamPredavanj[DAN]=UrnikPredavanj[[#Headers],[ČETRTEK]])*(ROUNDDOWN($B4,10)>=ROUNDDOWN(SeznamPredavanj[ČAS ZAČETKA],10))*($B4<=SeznamPredavanj[ČAS KONCA]),SeznamPredavanj[EDINSTVENO]),SeznamPredavanj[EDINSTVENO],0),2),0)","v":0},{"$f":"IFERROR(INDEX(SeznamPredavanj[],MATCH(SUMPRODUCT((SeznamPredavanj[DAN]=UrnikPredavanj[[#Headers],[PETEK]])*(ROUNDDOWN($B4,10)>=ROUNDDOWN(SeznamPredavanj[ČAS ZAČETKA],10))*($B4<=SeznamPredavanj[ČAS KONCA]),SeznamPredavanj[EDINSTVENO]),SeznamPredavanj[EDINSTVENO],0),2),0)","v":0},{"$f":"IFERROR(INDEX(SeznamPredavanj[],MATCH(SUMPRODUCT((SeznamPredavanj[DAN]=UrnikPredavanj[[#Headers],[SOBOTA]])*(ROUNDDOWN($B4,10)>=ROUNDDOWN(SeznamPredavanj[ČAS ZAČETKA],10))*($B4<=SeznamPredavanj[ČAS KONCA]),SeznamPredavanj[EDINSTVENO]),SeznamPredavanj[EDINSTVENO],0),2),0)","v":0}]
[null,{"$f":"B4+Prirastek","v":"08:15:00"},{"$f":"IFERROR(INDEX(SeznamPredavanj[],MATCH(SUMPRODUCT((SeznamPredavanj[DAN]=UrnikPredavanj[[#Headers],[NEDELJA]])*(ROUNDDOWN($B5,10)>=ROUNDDOWN(SeznamPredavanj[ČAS ZAČETKA],10))*($B5<=SeznamPredavanj[ČAS KONCA]),SeznamPredavanj[EDINSTVENO]),SeznamPredavanj[EDINSTVENO],0),2),0)","v":0},{"$f":"IFERROR(INDEX(SeznamPredavanj[],MATCH(SUMPRODUCT((SeznamPredavanj[DAN]=UrnikPredavanj[[#Headers],[PONEDELJEK]])*(ROUNDDOWN($B5,10)>=ROUNDDOWN(SeznamPredavanj[ČAS ZAČETKA],10))*($B5<=SeznamPredavanj[ČAS KONCA]),SeznamPredavanj[EDINSTVENO]),SeznamPredavanj[EDINSTVENO],0),2),0)","v":"MAT-113"},{"$f":"IFERROR(INDEX(SeznamPredavanj[],MATCH(SUMPRODUCT((SeznamPredavanj[DAN]=UrnikPredavanj[[#Headers],[TOREK]])*(ROUNDDOWN($B5,10)>=ROUNDDOWN(SeznamPredavanj[ČAS ZAČETKA],10))*($B5<=SeznamPredavanj[ČAS KONCA]),SeznamPredavanj[EDINSTVENO]),SeznamPredavanj[EDINSTVENO],0),2),0)","v":0},{"$f":"IFERROR(INDEX(SeznamPredavanj[],MATCH(SUMPRODUCT((SeznamPredavanj[DAN]=UrnikPredavanj[[#Headers],[SREDA]])*(ROUNDDOWN($B5,10)>=ROUNDDOWN(SeznamPredavanj[ČAS ZAČETKA],10))*($B5<=SeznamPredavanj[ČAS KONCA]),SeznamPredavanj[EDINSTVENO]),SeznamPredavanj[EDINSTVENO],0),2),0)","v":"MAT-113"},{"$f":"IFERROR(INDEX(SeznamPredavanj[],MATCH(SUMPRODUCT((SeznamPredavanj[DAN]=UrnikPredavanj[[#Headers],[ČETRTEK]])*(ROUNDDOWN($B5,10)>=ROUNDDOWN(SeznamPredavanj[ČAS ZAČETKA],10))*($B5<=SeznamPredavanj[ČAS KONCA]),SeznamPredavanj[EDINSTVENO]),SeznamPredavanj[EDINSTVENO],0),2),0)","v":0},{"$f":"IFERROR(INDEX(SeznamPredavanj[],MATCH(SUMPRODUCT((SeznamPredavanj[DAN]=UrnikPredavanj[[#Headers],[PETEK]])*(ROUNDDOWN($B5,10)>=ROUNDDOWN(SeznamPredavanj[ČAS ZAČETKA],10))*($B5<=SeznamPredavanj[ČAS KONCA]),SeznamPredavanj[EDINSTVENO]),SeznamPredavanj[EDINSTVENO],0),2),0)","v":"MAT-113"},{"$f":"IFERROR(INDEX(SeznamPredavanj[],MATCH(SUMPRODUCT((SeznamPredavanj[DAN]=UrnikPredavanj[[#Headers],[SOBOTA]])*(ROUNDDOWN($B5,10)>=ROUNDDOWN(SeznamPredavanj[ČAS ZAČETKA],10))*($B5<=SeznamPredavanj[ČAS KONCA]),SeznamPredavanj[EDINSTVENO]),SeznamPredavanj[EDINSTVENO],0),2),0)","v":0}]
[null,"08:30:00",{"$f":"IFERROR(INDEX(SeznamPredavanj[],MATCH(SUMPRODUCT((SeznamPredavanj[DAN]=UrnikPredavanj[[#Headers],[NEDELJA]])*(ROUNDDOWN($B6,10)>=ROUNDDOWN(SeznamPredavanj[ČAS ZAČETKA],10))*($B6<=SeznamPredavanj[ČAS KONCA]),SeznamPredavanj[EDINSTVENO]),SeznamPredavanj[EDINSTVENO],0),2),0)","v":0},{"$f":"IFERROR(INDEX(SeznamPredavanj[],MATCH(SUMPRODUCT((SeznamPredavanj[DAN]=UrnikPredavanj[[#Headers],[PONEDELJEK]])*(ROUNDDOWN($B6,10)>=ROUNDDOWN(SeznamPredavanj[ČAS ZAČETKA],10))*($B6<=SeznamPredavanj[ČAS KONCA]),SeznamPredavanj[EDINSTVENO]),SeznamPredavanj[EDINSTVENO],0),2),0)","v":"MAT-113"},{"$f":"IFERROR(INDEX(SeznamPredavanj[],MATCH(SUMPRODUCT((SeznamPredavanj[DAN]=UrnikPredavanj[[#Headers],[TOREK]])*(ROUNDDOWN($B6,10)>=ROUNDDOWN(SeznamPredavanj[ČAS ZAČETKA],10))*($B6<=SeznamPredavanj[ČAS KONCA]),SeznamPredavanj[EDINSTVENO]),SeznamPredavanj[EDINSTVENO],0),2),0)","v":0},{"$f":"IFERROR(INDEX(SeznamPredavanj[],MATCH(SUMPRODUCT((SeznamPredavanj[DAN]=UrnikPredavanj[[#Headers],[SREDA]])*(ROUNDDOWN($B6,10)>=ROUNDDOWN(SeznamPredavanj[ČAS ZAČETKA],10))*($B6<=SeznamPredavanj[ČAS KONCA]),SeznamPredavanj[EDINSTVENO]),SeznamPredavanj[EDINSTVENO],0),2),0)","v":"MAT-113"},{"$f":"IFERROR(INDEX(SeznamPredavanj[],MATCH(SUMPRODUCT((SeznamPredavanj[DAN]=UrnikPredavanj[[#Headers],[ČETRTEK]])*(ROUNDDOWN($B6,10)>=ROUNDDOWN(SeznamPredavanj[ČAS ZAČETKA],10))*($B6<=SeznamPredavanj[ČAS KONCA]),SeznamPredavanj[EDINSTVENO]),SeznamPredavanj[EDINSTVENO],0),2),0)","v":0},{"$f":"IFERROR(INDEX(SeznamPredavanj[],MATCH(SUMPRODUCT((SeznamPredavanj[DAN]=UrnikPredavanj[[#Headers],[PETEK]])*(ROUNDDOWN($B6,10)>=ROUNDDOWN(SeznamPredavanj[ČAS ZAČETKA],10))*($B6<=SeznamPredavanj[ČAS KONCA]),SeznamPredavanj[EDINSTVENO]),SeznamPredavanj[EDINSTVENO],0),2),0)","v":"MAT-113"},{"$f":"IFERROR(INDEX(SeznamPredavanj[],MATCH(SUMPRODUCT((SeznamPredavanj[DAN]=UrnikPredavanj[[#Headers],[SOBOTA]])*(ROUNDDOWN($B6,10)>=ROUNDDOWN(SeznamPredavanj[ČAS ZAČETKA],10))*($B6<=SeznamPredavanj[ČAS KONCA]),SeznamPredavanj[EDINSTVENO]),SeznamPredavanj[EDINSTVENO],0),2),0)","v":0}]
[null,"08:45:00",{"$f":"IFERROR(INDEX(SeznamPredavanj[],MATCH(SUMPRODUCT((SeznamPredavanj[DAN]=UrnikPredavanj[[#Headers],[NEDELJA]])*(ROUNDDOWN($B7,10)>=ROUNDDOWN(SeznamPredavanj[ČAS ZAČETKA],10))*($B7<=SeznamPredavanj[ČAS KONCA]),SeznamPredavanj[EDINSTVENO]),SeznamPredavanj[EDINSTVENO],0),2),0)","v":0},{"$f":"IFERROR(INDEX(SeznamPredavanj[],MATCH(SUMPRODUCT((SeznamPredavanj[DAN]=UrnikPredavanj[[#Headers],[PONEDELJEK]])*(ROUNDDOWN($B7,10)>=ROUNDDOWN(SeznamPredavanj[ČAS ZAČETKA],10))*($B7<=SeznamPredavanj[ČAS KONCA]),SeznamPredavanj[EDINSTVENO]),SeznamPredavanj[EDINSTVENO],0),2),0)","v":"MAT-113"},{"$f":"IFERROR(INDEX(SeznamPredavanj[],MATCH(SUMPRODUCT((SeznamPredavanj[DAN]=UrnikPredavanj[[#Headers],[TOREK]])*(ROUNDDOWN($B7,10)>=ROUNDDOWN(SeznamPredavanj[ČAS ZAČETKA],10))*($B7<=SeznamPredavanj[ČAS KONCA]),SeznamPredavanj[EDINSTVENO]),SeznamPredavanj[EDINSTVENO],0),2),0)","v":0},{"$f":"IFERROR(INDEX(SeznamPredavanj[],MATCH(SUMPRODUCT((SeznamPredavanj[DAN]=UrnikPredavanj[[#Headers],[SREDA]])*(ROUNDDOWN($B7,10)>=ROUNDDOWN(SeznamPredavanj[ČAS ZAČETKA],10))*($B7<=SeznamPredavanj[ČAS KONCA]),SeznamPredavanj[EDINSTVENO]),SeznamPredavanj[EDINSTVENO],0),2),0)","v":"MAT-113"},{"$f":"IFERROR(INDEX(SeznamPredavanj[],MATCH(SUMPRODUCT((SeznamPredavanj[DAN]=UrnikPredavanj[[#Headers],[ČETRTEK]])*(ROUNDDOWN($B7,10)>=ROUNDDOWN(SeznamPredavanj[ČAS ZAČETKA],10))*($B7<=SeznamPredavanj[ČAS KONCA]),SeznamPredavanj[EDINSTVENO]),SeznamPredavanj[EDINSTVENO],0),2),0)","v":0},{"$f":"IFERROR(INDEX(SeznamPredavanj[],MATCH(SUMPRODUCT((SeznamPredavanj[DAN]=UrnikPredavanj[[#Headers],[PETEK]])*(ROUNDDOWN($B7,10)>=ROUNDDOWN(SeznamPredavanj[ČAS ZAČETKA],10))*($B7<=SeznamPredavanj[ČAS KONCA]),SeznamPredavanj[EDINSTVENO]),SeznamPredavanj[EDINSTVENO],0),2),0)","v":"MAT-113"},{"$f":"IFERROR(INDEX(SeznamPredavanj[],MATCH(SUMPRODUCT((SeznamPredavanj[DAN]=UrnikPredavanj[[#Headers],[SOBOTA]])*(ROUNDDOWN($B7,10)>=ROUNDDOWN(SeznamPredavanj[ČAS ZAČETKA],10))*($B7<=SeznamPredavanj[ČAS KONCA]),SeznamPredavanj[EDINSTVENO]),SeznamPredavanj[EDINSTVENO],0),2),0)","v":0}]
[null,"09:00:00",{"$f":"IFERROR(INDEX(SeznamPredavanj[],MATCH(SUMPRODUCT((SeznamPredavanj[DAN]=UrnikPredavanj[[#Headers],[NEDELJA]])*(ROUNDDOWN($B8,10)>=ROUNDDOWN(SeznamPredavanj[ČAS ZAČETKA],10))*($B8<=SeznamPredavanj[ČAS KONCA]),SeznamPredavanj[EDINSTVENO]),SeznamPredavanj[EDINSTVENO],0),2),0)","v":0},{"$f":"IFERROR(INDEX(SeznamPredavanj[],MATCH(SUMPRODUCT((SeznamPredavanj[DAN]=UrnikPredavanj[[#Headers],[PONEDELJEK]])*(ROUNDDOWN($B8,10)>=ROUNDDOWN(SeznamPredavanj[ČAS ZAČETKA],10))*($B8<=SeznamPredavanj[ČAS KONCA]),SeznamPredavanj[EDINSTVENO]),SeznamPredavanj[EDINSTVENO],0),2),0)","v":"MAT-113"},{"$f":"IFERROR(INDEX(SeznamPredavanj[],MATCH(SUMPRODUCT((SeznamPredavanj[DAN]=UrnikPredavanj[[#Headers],[TOREK]])*(ROUNDDOWN($B8,10)>=ROUNDDOWN(SeznamPredavanj[ČAS ZAČETKA],10))*($B8<=SeznamPredavanj[ČAS KONCA]),SeznamPredavanj[EDINSTVENO]),SeznamPredavanj[EDINSTVENO],0),2),0)","v":0},{"$f":"IFERROR(INDEX(SeznamPredavanj[],MATCH(SUMPRODUCT((SeznamPredavanj[DAN]=UrnikPredavanj[[#Headers],[SREDA]])*(ROUNDDOWN($B8,10)>=ROUNDDOWN(SeznamPredavanj[ČAS ZAČETKA],10))*($B8<=SeznamPredavanj[ČAS KONCA]),SeznamPredavanj[EDINSTVENO]),SeznamPredavanj[EDINSTVENO],0),2),0)","v":"MAT-113"},{"$f":"IFERROR(INDEX(SeznamPredavanj[],MATCH(SUMPRODUCT((SeznamPredavanj[DAN]=UrnikPredavanj[[#Headers],[ČETRTEK]])*(ROUNDDOWN($B8,10)>=ROUNDDOWN(SeznamPredavanj[ČAS ZAČETKA],10))*($B8<=SeznamPredavanj[ČAS KONCA]),SeznamPredavanj[EDINSTVENO]),SeznamPredavanj[EDINSTVENO],0),2),0)","v":0},{"$f":"IFERROR(INDEX(SeznamPredavanj[],MATCH(SUMPRODUCT((SeznamPredavanj[DAN]=UrnikPredavanj[[#Headers],[PETEK]])*(ROUNDDOWN($B8,10)>=ROUNDDOWN(SeznamPredavanj[ČAS ZAČETKA],10))*($B8<=SeznamPredavanj[ČAS KONCA]),SeznamPredavanj[EDINSTVENO]),SeznamPredavanj[EDINSTVENO],0),2),0)","v":"MAT-113"},{"$f":"IFERROR(INDEX(SeznamPredavanj[],MATCH(SUMPRODUCT((SeznamPredavanj[DAN]=UrnikPredavanj[[#Headers],[SOBOTA]])*(ROUNDDOWN($B8,10)>=ROUNDDOWN(SeznamPredavanj[ČAS ZAČETKA],10))*($B8<=SeznamPredavanj[ČAS KONCA]),SeznamPredavanj[EDINSTVENO]),SeznamPredavanj[EDINSTVENO],0),2),0)","v":0}]
[null,"09:15:00",{"$f":"IFERROR(INDEX(SeznamPredavanj[],MATCH(SUMPRODUCT((SeznamPredavanj[DAN]=UrnikPredavanj[[#Headers],[NEDELJA]])*(ROUNDDOWN($B9,10)>=ROUNDDOWN(SeznamPredavanj[ČAS ZAČETKA],10))*($B9<=SeznamPredavanj[ČAS KONCA]),SeznamPredavanj[EDINSTVENO]),SeznamPredavanj[EDINSTVENO],0),2),0)","v":0},{"$f":"IFERROR(INDEX(SeznamPredavanj[],MATCH(SUMPRODUCT((SeznamPredavanj[DAN]=UrnikPredavanj[[#Headers],[PONEDELJEK]])*(ROUNDDOWN($B9,10)>=ROUNDDOWN(SeznamPredavanj[ČAS ZAČETKA],10))*($B9<=SeznamPredavanj[ČAS KONCA]),SeznamPredavanj[EDINSTVENO]),SeznamPredavanj[EDINSTVENO],0),2),0)","v":"MAT-113"},{"$f":"IFERROR(INDEX(SeznamPredavanj[],MATCH(SUMPRODUCT((SeznamPredavanj[DAN]=UrnikPredavanj[[#Headers],[TOREK]])*(ROUNDDOWN($B9,10)>=ROUNDDOWN(SeznamPredavanj[ČAS ZAČETKA],10))*($B9<=SeznamPredavanj[ČAS KONCA]),SeznamPredavanj[EDINSTVENO]),SeznamPredavanj[EDINSTVENO],0),2),0)","v":0},{"$f":"IFERROR(INDEX(SeznamPredavanj[],MATCH(SUMPRODUCT((SeznamPredavanj[DAN]=UrnikPredavanj[[#Headers],[SREDA]])*(ROUNDDOWN($B9,10)>=ROUNDDOWN(SeznamPredavanj[ČAS ZAČETKA],10))*($B9<=SeznamPredavanj[ČAS KONCA]),SeznamPredavanj[EDINSTVENO]),SeznamPredavanj[EDINSTVENO],0),2),0)","v":"MAT-113"},{"$f":"IFERROR(INDEX(SeznamPredavanj[],MATCH(SUMPRODUCT((SeznamPredavanj[DAN]=UrnikPredavanj[[#Headers],[ČETRTEK]])*(ROUNDDOWN($B9,10)>=ROUNDDOWN(SeznamPredavanj[ČAS ZAČETKA],10))*($B9<=SeznamPredavanj[ČAS KONCA]),SeznamPredavanj[EDINSTVENO]),SeznamPredavanj[EDINSTVENO],0),2),0)","v":0},{"$f":"IFERROR(INDEX(SeznamPredavanj[],MATCH(SUMPRODUCT((SeznamPredavanj[DAN]=UrnikPredavanj[[#Headers],[PETEK]])*(ROUNDDOWN($B9,10)>=ROUNDDOWN(SeznamPredavanj[ČAS ZAČETKA],10))*($B9<=SeznamPredavanj[ČAS KONCA]),SeznamPredavanj[EDINSTVENO]),SeznamPredavanj[EDINSTVENO],0),2),0)","v":"MAT-113"},{"$f":"IFERROR(INDEX(SeznamPredavanj[],MATCH(SUMPRODUCT((SeznamPredavanj[DAN]=UrnikPredavanj[[#Headers],[SOBOTA]])*(ROUNDDOWN($B9,10)>=ROUNDDOWN(SeznamPredavanj[ČAS ZAČETKA],10))*($B9<=SeznamPredavanj[ČAS KONCA]),SeznamPredavanj[EDINSTVENO]),SeznamPredavanj[EDINSTVENO],0),2),0)","v":0}]
[null,"09:30:00",{"$f":"IFERROR(INDEX(SeznamPredavanj[],MATCH(SUMPRODUCT((SeznamPredavanj[DAN]=UrnikPredavanj[[#Headers],[NEDELJA]])*(ROUNDDOWN($B10,10)>=ROUNDDOWN(SeznamPredavanj[ČAS ZAČETKA],10))*($B10<=SeznamPredavanj[ČAS KONCA]),SeznamPredavanj[EDINSTVENO]),SeznamPredavanj[EDINSTVENO],0),2),0)","v":0},{"$f":"IFERROR(INDEX(SeznamPredavanj[],MATCH(SUMPRODUCT((SeznamPredavanj[DAN]=UrnikPredavanj[[#Headers],[PONEDELJEK]])*(ROUNDDOWN($B10,10)>=ROUNDDOWN(SeznamPredavanj[ČAS ZAČETKA],10))*($B10<=SeznamPredavanj[ČAS KONCA]),SeznamPredavanj[EDINSTVENO]),SeznamPredavanj[EDINSTVENO],0),2),0)","v":0},{"$f":"IFERROR(INDEX(SeznamPredavanj[],MATCH(SUMPRODUCT((SeznamPredavanj[DAN]=UrnikPredavanj[[#Headers],[TOREK]])*(ROUNDDOWN($B10,10)>=ROUNDDOWN(SeznamPredavanj[ČAS ZAČETKA],10))*($B10<=SeznamPredavanj[ČAS KONCA]),SeznamPredavanj[EDINSTVENO]),SeznamPredavanj[EDINSTVENO],0),2),0)","v":0},{"$f":"IFERROR(INDEX(SeznamPredavanj[],MATCH(SUMPRODUCT((SeznamPredavanj[DAN]=UrnikPredavanj[[#Headers],[SREDA]])*(ROUNDDOWN($B10,10)>=ROUNDDOWN(SeznamPredavanj[ČAS ZAČETKA],10))*($B10<=SeznamPredavanj[ČAS KONCA]),SeznamPredavanj[EDINSTVENO]),SeznamPredavanj[EDINSTVENO],0),2),0)","v":0},{"$f":"IFERROR(INDEX(SeznamPredavanj[],MATCH(SUMPRODUCT((SeznamPredavanj[DAN]=UrnikPredavanj[[#Headers],[ČETRTEK]])*(ROUNDDOWN($B10,10)>=ROUNDDOWN(SeznamPredavanj[ČAS ZAČETKA],10))*($B10<=SeznamPredavanj[ČAS KONCA]),SeznamPredavanj[EDINSTVENO]),SeznamPredavanj[EDINSTVENO],0),2),0)","v":0},{"$f":"IFERROR(INDEX(SeznamPredavanj[],MATCH(SUMPRODUCT((SeznamPredavanj[DAN]=UrnikPredavanj[[#Headers],[PETEK]])*(ROUNDDOWN($B10,10)>=ROUNDDOWN(SeznamPredavanj[ČAS ZAČETKA],10))*($B10<=SeznamPredavanj[ČAS KONCA]),SeznamPredavanj[EDINSTVENO]),SeznamPredavanj[EDINSTVENO],0),2),0)","v":0},{"$f":"IFERROR(INDEX(SeznamPredavanj[],MATCH(SUMPRODUCT((SeznamPredavanj[DAN]=UrnikPredavanj[[#Headers],[SOBOTA]])*(ROUNDDOWN($B10,10)>=ROUNDDOWN(SeznamPredavanj[ČAS ZAČETKA],10))*($B10<=SeznamPredavanj[ČAS KONCA]),SeznamPredavanj[EDINSTVENO]),SeznamPredavanj[EDINSTVENO],0),2),0)","v":0}]
[null,"09:45:00",{"$f":"IFERROR(INDEX(SeznamPredavanj[],MATCH(SUMPRODUCT((SeznamPredavanj[DAN]=UrnikPredavanj[[#Headers],[NEDELJA]])*(ROUNDDOWN($B11,10)>=ROUNDDOWN(SeznamPredavanj[ČAS ZAČETKA],10))*($B11<=SeznamPredavanj[ČAS KONCA]),SeznamPredavanj[EDINSTVENO]),SeznamPredavanj[EDINSTVENO],0),2),0)","v":0},{"$f":"IFERROR(INDEX(SeznamPredavanj[],MATCH(SUMPRODUCT((SeznamPredavanj[DAN]=UrnikPredavanj[[#Headers],[PONEDELJEK]])*(ROUNDDOWN($B11,10)>=ROUNDDOWN(SeznamPredavanj[ČAS ZAČETKA],10))*($B11<=SeznamPredavanj[ČAS KONCA]),SeznamPredavanj[EDINSTVENO]),SeznamPredavanj[EDINSTVENO],0),2),0)","v":0},{"$f":"IFERROR(INDEX(SeznamPredavanj[],MATCH(SUMPRODUCT((SeznamPredavanj[DAN]=UrnikPredavanj[[#Headers],[TOREK]])*(ROUNDDOWN($B11,10)>=ROUNDDOWN(SeznamPredavanj[ČAS ZAČETKA],10))*($B11<=SeznamPredavanj[ČAS KONCA]),SeznamPredavanj[EDINSTVENO]),SeznamPredavanj[EDINSTVENO],0),2),0)","v":0},{"$f":"IFERROR(INDEX(SeznamPredavanj[],MATCH(SUMPRODUCT((SeznamPredavanj[DAN]=UrnikPredavanj[[#Headers],[SREDA]])*(ROUNDDOWN($B11,10)>=ROUNDDOWN(SeznamPredavanj[ČAS ZAČETKA],10))*($B11<=SeznamPredavanj[ČAS KONCA]),SeznamPredavanj[EDINSTVENO]),SeznamPredavanj[EDINSTVENO],0),2),0)","v":0},{"$f":"IFERROR(INDEX(SeznamPredavanj[],MATCH(SUMPRODUCT((SeznamPredavanj[DAN]=UrnikPredavanj[[#Headers],[ČETRTEK]])*(ROUNDDOWN($B11,10)>=ROUNDDOWN(SeznamPredavanj[ČAS ZAČETKA],10))*($B11<=SeznamPredavanj[ČAS KONCA]),SeznamPredavanj[EDINSTVENO]),SeznamPredavanj[EDINSTVENO],0),2),0)","v":0},{"$f":"IFERROR(INDEX(SeznamPredavanj[],MATCH(SUMPRODUCT((SeznamPredavanj[DAN]=UrnikPredavanj[[#Headers],[PETEK]])*(ROUNDDOWN($B11,10)>=ROUNDDOWN(SeznamPredavanj[ČAS ZAČETKA],10))*($B11<=SeznamPredavanj[ČAS KONCA]),SeznamPredavanj[EDINSTVENO]),SeznamPredavanj[EDINSTVENO],0),2),0)","v":0},{"$f":"IFERROR(INDEX(SeznamPredavanj[],MATCH(SUMPRODUCT((SeznamPredavanj[DAN]=UrnikPredavanj[[#Headers],[SOBOTA]])*(ROUNDDOWN($B11,10)>=ROUNDDOWN(SeznamPredavanj[ČAS ZAČETKA],10))*($B11<=SeznamPredavanj[ČAS KONCA]),SeznamPredavanj[EDINSTVENO]),SeznamPredavanj[EDINSTVENO],0),2),0)","v":0}]
[null,"10:00:00",{"$f":"IFERROR(INDEX(SeznamPredavanj[],MATCH(SUMPRODUCT((SeznamPredavanj[DAN]=UrnikPredavanj[[#Headers],[NEDELJA]])*(ROUNDDOWN($B12,10)>=ROUNDDOWN(SeznamPredavanj[ČAS ZAČETKA],10))*($B12<=SeznamPredavanj[ČAS KONCA]),SeznamPredavanj[EDINSTVENO]),SeznamPredavanj[EDINSTVENO],0),2),0)","v":0},{"$f":"IFERROR(INDEX(SeznamPredavanj[],MATCH(SUMPRODUCT((SeznamPredavanj[DAN]=UrnikPredavanj[[#Headers],[PONEDELJEK]])*(ROUNDDOWN($B12,10)>=ROUNDDOWN(SeznamPredavanj[ČAS ZAČETKA],10))*($B12<=SeznamPredavanj[ČAS KONCA]),SeznamPredavanj[EDINSTVENO]),SeznamPredavanj[EDINSTVENO],0),2),0)","v":0},{"$f":"IFERROR(INDEX(SeznamPredavanj[],MATCH(SUMPRODUCT((SeznamPredavanj[DAN]=UrnikPredavanj[[#Headers],[TOREK]])*(ROUNDDOWN($B12,10)>=ROUNDDOWN(SeznamPredavanj[ČAS ZAČETKA],10))*($B12<=SeznamPredavanj[ČAS KONCA]),SeznamPredavanj[EDINSTVENO]),SeznamPredavanj[EDINSTVENO],0),2),0)","v":0},{"$f":"IFERROR(INDEX(SeznamPredavanj[],MATCH(SUMPRODUCT((SeznamPredavanj[DAN]=UrnikPredavanj[[#Headers],[SREDA]])*(ROUNDDOWN($B12,10)>=ROUNDDOWN(SeznamPredavanj[ČAS ZAČETKA],10))*($B12<=SeznamPredavanj[ČAS KONCA]),SeznamPredavanj[EDINSTVENO]),SeznamPredavanj[EDINSTVENO],0),2),0)","v":0},{"$f":"IFERROR(INDEX(SeznamPredavanj[],MATCH(SUMPRODUCT((SeznamPredavanj[DAN]=UrnikPredavanj[[#Headers],[ČETRTEK]])*(ROUNDDOWN($B12,10)>=ROUNDDOWN(SeznamPredavanj[ČAS ZAČETKA],10))*($B12<=SeznamPredavanj[ČAS KONCA]),SeznamPredavanj[EDINSTVENO]),SeznamPredavanj[EDINSTVENO],0),2),0)","v":0},{"$f":"IFERROR(INDEX(SeznamPredavanj[],MATCH(SUMPRODUCT((SeznamPredavanj[DAN]=UrnikPredavanj[[#Headers],[PETEK]])*(ROUNDDOWN($B12,10)>=ROUNDDOWN(SeznamPredavanj[ČAS ZAČETKA],10))*($B12<=SeznamPredavanj[ČAS KONCA]),SeznamPredavanj[EDINSTVENO]),SeznamPredavanj[EDINSTVENO],0),2),0)","v":0},{"$f":"IFERROR(INDEX(SeznamPredavanj[],MATCH(SUMPRODUCT((SeznamPredavanj[DAN]=UrnikPredavanj[[#Headers],[SOBOTA]])*(ROUNDDOWN($B12,10)>=ROUNDDOWN(SeznamPredavanj[ČAS ZAČETKA],10))*($B12<=SeznamPredavanj[ČAS KONCA]),SeznamPredavanj[EDINSTVENO]),SeznamPredavanj[EDINSTVENO],0),2),0)","v":0}]
[null,"10:15:00",{"$f":"IFERROR(INDEX(SeznamPredavanj[],MATCH(SUMPRODUCT((SeznamPredavanj[DAN]=UrnikPredavanj[[#Headers],[NEDELJA]])*(ROUNDDOWN($B13,10)>=ROUNDDOWN(SeznamPredavanj[ČAS ZAČETKA],10))*($B13<=SeznamPredavanj[ČAS KONCA]),SeznamPredavanj[EDINSTVENO]),SeznamPredavanj[EDINSTVENO],0),2),0)","v":0},{"$f":"IFERROR(INDEX(SeznamPredavanj[],MATCH(SUMPRODUCT((SeznamPredavanj[DAN]=UrnikPredavanj[[#Headers],[PONEDELJEK]])*(ROUNDDOWN($B13,10)>=ROUNDDOWN(SeznamPredavanj[ČAS ZAČETKA],10))*($B13<=SeznamPredavanj[ČAS KONCA]),SeznamPredavanj[EDINSTVENO]),SeznamPredavanj[EDINSTVENO],0),2),0)","v":0},{"$f":"IFERROR(INDEX(SeznamPredavanj[],MATCH(SUMPRODUCT((SeznamPredavanj[DAN]=UrnikPredavanj[[#Headers],[TOREK]])*(ROUNDDOWN($B13,10)>=ROUNDDOWN(SeznamPredavanj[ČAS ZAČETKA],10))*($B13<=SeznamPredavanj[ČAS KONCA]),SeznamPredavanj[EDINSTVENO]),SeznamPredavanj[EDINSTVENO],0),2),0)","v":0},{"$f":"IFERROR(INDEX(SeznamPredavanj[],MATCH(SUMPRODUCT((SeznamPredavanj[DAN]=UrnikPredavanj[[#Headers],[SREDA]])*(ROUNDDOWN($B13,10)>=ROUNDDOWN(SeznamPredavanj[ČAS ZAČETKA],10))*($B13<=SeznamPredavanj[ČAS KONCA]),SeznamPredavanj[EDINSTVENO]),SeznamPredavanj[EDINSTVENO],0),2),0)","v":0},{"$f":"IFERROR(INDEX(SeznamPredavanj[],MATCH(SUMPRODUCT((SeznamPredavanj[DAN]=UrnikPredavanj[[#Headers],[ČETRTEK]])*(ROUNDDOWN($B13,10)>=ROUNDDOWN(SeznamPredavanj[ČAS ZAČETKA],10))*($B13<=SeznamPredavanj[ČAS KONCA]),SeznamPredavanj[EDINSTVENO]),SeznamPredavanj[EDINSTVENO],0),2),0)","v":0},{"$f":"IFERROR(INDEX(SeznamPredavanj[],MATCH(SUMPRODUCT((SeznamPredavanj[DAN]=UrnikPredavanj[[#Headers],[PETEK]])*(ROUNDDOWN($B13,10)>=ROUNDDOWN(SeznamPredavanj[ČAS ZAČETKA],10))*($B13<=SeznamPredavanj[ČAS KONCA]),SeznamPredavanj[EDINSTVENO]),SeznamPredavanj[EDINSTVENO],0),2),0)","v":0},{"$f":"IFERROR(INDEX(SeznamPredavanj[],MATCH(SUMPRODUCT((SeznamPredavanj[DAN]=UrnikPredavanj[[#Headers],[SOBOTA]])*(ROUNDDOWN($B13,10)>=ROUNDDOWN(SeznamPredavanj[ČAS ZAČETKA],10))*($B13<=SeznamPredavanj[ČAS KONCA]),SeznamPredavanj[EDINSTVENO]),SeznamPredavanj[EDINSTVENO],0),2),0)","v":0}]
[null,"10:30:00",{"$f":"IFERROR(INDEX(SeznamPredavanj[],MATCH(SUMPRODUCT((SeznamPredavanj[DAN]=UrnikPredavanj[[#Headers],[NEDELJA]])*(ROUNDDOWN($B14,10)>=ROUNDDOWN(SeznamPredavanj[ČAS ZAČETKA],10))*($B14<=SeznamPredavanj[ČAS KONCA]),SeznamPredavanj[EDINSTVENO]),SeznamPredavanj[EDINSTVENO],0),2),0)","v":0},{"$f":"IFERROR(INDEX(SeznamPredavanj[],MATCH(SUMPRODUCT((SeznamPredavanj[DAN]=UrnikPredavanj[[#Headers],[PONEDELJEK]])*(ROUNDDOWN($B14,10)>=ROUNDDOWN(SeznamPredavanj[ČAS ZAČETKA],10))*($B14<=SeznamPredavanj[ČAS KONCA]),SeznamPredavanj[EDINSTVENO]),SeznamPredavanj[EDINSTVENO],0),2),0)","v":0},{"$f":"IFERROR(INDEX(SeznamPredavanj[],MATCH(SUMPRODUCT((SeznamPredavanj[DAN]=UrnikPredavanj[[#Headers],[TOREK]])*(ROUNDDOWN($B14,10)>=ROUNDDOWN(SeznamPredavanj[ČAS ZAČETKA],10))*($B14<=SeznamPredavanj[ČAS KONCA]),SeznamPredavanj[EDINSTVENO]),SeznamPredavanj[EDINSTVENO],0),2),0)","v":0},{"$f":"IFERROR(INDEX(SeznamPredavanj[],MATCH(SUMPRODUCT((SeznamPredavanj[DAN]=UrnikPredavanj[[#Headers],[SREDA]])*(ROUNDDOWN($B14,10)>=ROUNDDOWN(SeznamPredavanj[ČAS ZAČETKA],10))*($B14<=SeznamPredavanj[ČAS KONCA]),SeznamPredavanj[EDINSTVENO]),SeznamPredavanj[EDINSTVENO],0),2),0)","v":0},{"$f":"IFERROR(INDEX(SeznamPredavanj[],MATCH(SUMPRODUCT((SeznamPredavanj[DAN]=UrnikPredavanj[[#Headers],[ČETRTEK]])*(ROUNDDOWN($B14,10)>=ROUNDDOWN(SeznamPredavanj[ČAS ZAČETKA],10))*($B14<=SeznamPredavanj[ČAS KONCA]),SeznamPredavanj[EDINSTVENO]),SeznamPredavanj[EDINSTVENO],0),2),0)","v":0},{"$f":"IFERROR(INDEX(SeznamPredavanj[],MATCH(SUMPRODUCT((SeznamPredavanj[DAN]=UrnikPredavanj[[#Headers],[PETEK]])*(ROUNDDOWN($B14,10)>=ROUNDDOWN(SeznamPredavanj[ČAS ZAČETKA],10))*($B14<=SeznamPredavanj[ČAS KONCA]),SeznamPredavanj[EDINSTVENO]),SeznamPredavanj[EDINSTVENO],0),2),0)","v":0},{"$f":"IFERROR(INDEX(SeznamPredavanj[],MATCH(SUMPRODUCT((SeznamPredavanj[DAN]=UrnikPredavanj[[#Headers],[SOBOTA]])*(ROUNDDOWN($B14,10)>=ROUNDDOWN(SeznamPredavanj[ČAS ZAČETKA],10))*($B14<=SeznamPredavanj[ČAS KONCA]),SeznamPredavanj[EDINSTVENO]),SeznamPredavanj[EDINSTVENO],0),2),0)","v":0}]
[null,"10:45:00",{"$f":"IFERROR(INDEX(SeznamPredavanj[],MATCH(SUMPRODUCT((SeznamPredavanj[DAN]=UrnikPredavanj[[#Headers],[NEDELJA]])*(ROUNDDOWN($B15,10)>=ROUNDDOWN(SeznamPredavanj[ČAS ZAČETKA],10))*($B15<=SeznamPredavanj[ČAS KONCA]),SeznamPredavanj[EDINSTVENO]),SeznamPredavanj[EDINSTVENO],0),2),0)","v":0},{"$f":"IFERROR(INDEX(SeznamPredavanj[],MATCH(SUMPRODUCT((SeznamPredavanj[DAN]=UrnikPredavanj[[#Headers],[PONEDELJEK]])*(ROUNDDOWN($B15,10)>=ROUNDDOWN(SeznamPredavanj[ČAS ZAČETKA],10))*($B15<=SeznamPredavanj[ČAS KONCA]),SeznamPredavanj[EDINSTVENO]),SeznamPredavanj[EDINSTVENO],0),2),0)","v":0},{"$f":"IFERROR(INDEX(SeznamPredavanj[],MATCH(SUMPRODUCT((SeznamPredavanj[DAN]=UrnikPredavanj[[#Headers],[TOREK]])*(ROUNDDOWN($B15,10)>=ROUNDDOWN(SeznamPredavanj[ČAS ZAČETKA],10))*($B15<=SeznamPredavanj[ČAS KONCA]),SeznamPredavanj[EDINSTVENO]),SeznamPredavanj[EDINSTVENO],0),2),0)","v":0},{"$f":"IFERROR(INDEX(SeznamPredavanj[],MATCH(SUMPRODUCT((SeznamPredavanj[DAN]=UrnikPredavanj[[#Headers],[SREDA]])*(ROUNDDOWN($B15,10)>=ROUNDDOWN(SeznamPredavanj[ČAS ZAČETKA],10))*($B15<=SeznamPredavanj[ČAS KONCA]),SeznamPredavanj[EDINSTVENO]),SeznamPredavanj[EDINSTVENO],0),2),0)","v":0},{"$f":"IFERROR(INDEX(SeznamPredavanj[],MATCH(SUMPRODUCT((SeznamPredavanj[DAN]=UrnikPredavanj[[#Headers],[ČETRTEK]])*(ROUNDDOWN($B15,10)>=ROUNDDOWN(SeznamPredavanj[ČAS ZAČETKA],10))*($B15<=SeznamPredavanj[ČAS KONCA]),SeznamPredavanj[EDINSTVENO]),SeznamPredavanj[EDINSTVENO],0),2),0)","v":0},{"$f":"IFERROR(INDEX(SeznamPredavanj[],MATCH(SUMPRODUCT((SeznamPredavanj[DAN]=UrnikPredavanj[[#Headers],[PETEK]])*(ROUNDDOWN($B15,10)>=ROUNDDOWN(SeznamPredavanj[ČAS ZAČETKA],10))*($B15<=SeznamPredavanj[ČAS KONCA]),SeznamPredavanj[EDINSTVENO]),SeznamPredavanj[EDINSTVENO],0),2),0)","v":0},{"$f":"IFERROR(INDEX(SeznamPredavanj[],MATCH(SUMPRODUCT((SeznamPredavanj[DAN]=UrnikPredavanj[[#Headers],[SOBOTA]])*(ROUNDDOWN($B15,10)>=ROUNDDOWN(SeznamPredavanj[ČAS ZAČETKA],10))*($B15<=SeznamPredavanj[ČAS KONCA]),SeznamPredavanj[EDINSTVENO]),SeznamPredavanj[EDINSTVENO],0),2),0)","v":0}]
[null,"11:00:00",{"$f":"IFERROR(INDEX(SeznamPredavanj[],MATCH(SUMPRODUCT((SeznamPredavanj[DAN]=UrnikPredavanj[[#Headers],[NEDELJA]])*(ROUNDDOWN($B16,10)>=ROUNDDOWN(SeznamPredavanj[ČAS ZAČETKA],10))*($B16<=SeznamPredavanj[ČAS KONCA]),SeznamPredavanj[EDINSTVENO]),SeznamPredavanj[EDINSTVENO],0),2),0)","v":0},{"$f":"IFERROR(INDEX(SeznamPredavanj[],MATCH(SUMPRODUCT((SeznamPredavanj[DAN]=UrnikPredavanj[[#Headers],[PONEDELJEK]])*(ROUNDDOWN($B16,10)>=ROUNDDOWN(SeznamPredavanj[ČAS ZAČETKA],10))*($B16<=SeznamPredavanj[ČAS KONCA]),SeznamPredavanj[EDINSTVENO]),SeznamPredavanj[EDINSTVENO],0),2),0)","v":0},{"$f":"IFERROR(INDEX(SeznamPredavanj[],MATCH(SUMPRODUCT((SeznamPredavanj[DAN]=UrnikPredavanj[[#Headers],[TOREK]])*(ROUNDDOWN($B16,10)>=ROUNDDOWN(SeznamPredavanj[ČAS ZAČETKA],10))*($B16<=SeznamPredavanj[ČAS KONCA]),SeznamPredavanj[EDINSTVENO]),SeznamPredavanj[EDINSTVENO],0),2),0)","v":"HPE-295"},{"$f":"IFERROR(INDEX(SeznamPredavanj[],MATCH(SUMPRODUCT((SeznamPredavanj[DAN]=UrnikPredavanj[[#Headers],[SREDA]])*(ROUNDDOWN($B16,10)>=ROUNDDOWN(SeznamPredavanj[ČAS ZAČETKA],10))*($B16<=SeznamPredavanj[ČAS KONCA]),SeznamPredavanj[EDINSTVENO]),SeznamPredavanj[EDINSTVENO],0),2),0)","v":0},{"$f":"IFERROR(INDEX(SeznamPredavanj[],MATCH(SUMPRODUCT((SeznamPredavanj[DAN]=UrnikPredavanj[[#Headers],[ČETRTEK]])*(ROUNDDOWN($B16,10)>=ROUNDDOWN(SeznamPredavanj[ČAS ZAČETKA],10))*($B16<=SeznamPredavanj[ČAS KONCA]),SeznamPredavanj[EDINSTVENO]),SeznamPredavanj[EDINSTVENO],0),2),0)","v":"HPE-295"},{"$f":"IFERROR(INDEX(SeznamPredavanj[],MATCH(SUMPRODUCT((SeznamPredavanj[DAN]=UrnikPredavanj[[#Headers],[PETEK]])*(ROUNDDOWN($B16,10)>=ROUNDDOWN(SeznamPredavanj[ČAS ZAČETKA],10))*($B16<=SeznamPredavanj[ČAS KONCA]),SeznamPredavanj[EDINSTVENO]),SeznamPredavanj[EDINSTVENO],0),2),0)","v":0},{"$f":"IFERROR(INDEX(SeznamPredavanj[],MATCH(SUMPRODUCT((SeznamPredavanj[DAN]=UrnikPredavanj[[#Headers],[SOBOTA]])*(ROUNDDOWN($B16,10)>=ROUNDDOWN(SeznamPredavanj[ČAS ZAČETKA],10))*($B16<=SeznamPredavanj[ČAS KONCA]),SeznamPredavanj[EDINSTVENO]),SeznamPredavanj[EDINSTVENO],0),2),0)","v":0}]
[null,"11:15:00",{"$f":"IFERROR(INDEX(SeznamPredavanj[],MATCH(SUMPRODUCT((SeznamPredavanj[DAN]=UrnikPredavanj[[#Headers],[NEDELJA]])*(ROUNDDOWN($B17,10)>=ROUNDDOWN(SeznamPredavanj[ČAS ZAČETKA],10))*($B17<=SeznamPredavanj[ČAS KONCA]),SeznamPredavanj[EDINSTVENO]),SeznamPredavanj[EDINSTVENO],0),2),0)","v":0},{"$f":"IFERROR(INDEX(SeznamPredavanj[],MATCH(SUMPRODUCT((SeznamPredavanj[DAN]=UrnikPredavanj[[#Headers],[PONEDELJEK]])*(ROUNDDOWN($B17,10)>=ROUNDDOWN(SeznamPredavanj[ČAS ZAČETKA],10))*($B17<=SeznamPredavanj[ČAS KONCA]),SeznamPredavanj[EDINSTVENO]),SeznamPredavanj[EDINSTVENO],0),2),0)","v":0},{"$f":"IFERROR(INDEX(SeznamPredavanj[],MATCH(SUMPRODUCT((SeznamPredavanj[DAN]=UrnikPredavanj[[#Headers],[TOREK]])*(ROUNDDOWN($B17,10)>=ROUNDDOWN(SeznamPredavanj[ČAS ZAČETKA],10))*($B17<=SeznamPredavanj[ČAS KONCA]),SeznamPredavanj[EDINSTVENO]),SeznamPredavanj[EDINSTVENO],0),2),0)","v":"HPE-295"},{"$f":"IFERROR(INDEX(SeznamPredavanj[],MATCH(SUMPRODUCT((SeznamPredavanj[DAN]=UrnikPredavanj[[#Headers],[SREDA]])*(ROUNDDOWN($B17,10)>=ROUNDDOWN(SeznamPredavanj[ČAS ZAČETKA],10))*($B17<=SeznamPredavanj[ČAS KONCA]),SeznamPredavanj[EDINSTVENO]),SeznamPredavanj[EDINSTVENO],0),2),0)","v":0},{"$f":"IFERROR(INDEX(SeznamPredavanj[],MATCH(SUMPRODUCT((SeznamPredavanj[DAN]=UrnikPredavanj[[#Headers],[ČETRTEK]])*(ROUNDDOWN($B17,10)>=ROUNDDOWN(SeznamPredavanj[ČAS ZAČETKA],10))*($B17<=SeznamPredavanj[ČAS KONCA]),SeznamPredavanj[EDINSTVENO]),SeznamPredavanj[EDINSTVENO],0),2),0)","v":"HPE-295"},{"$f":"IFERROR(INDEX(SeznamPredavanj[],MATCH(SUMPRODUCT((SeznamPredavanj[DAN]=UrnikPredavanj[[#Headers],[PETEK]])*(ROUNDDOWN($B17,10)>=ROUNDDOWN(SeznamPredavanj[ČAS ZAČETKA],10))*($B17<=SeznamPredavanj[ČAS KONCA]),SeznamPredavanj[EDINSTVENO]),SeznamPredavanj[EDINSTVENO],0),2),0)","v":0},{"$f":"IFERROR(INDEX(SeznamPredavanj[],MATCH(SUMPRODUCT((SeznamPredavanj[DAN]=UrnikPredavanj[[#Headers],[SOBOTA]])*(ROUNDDOWN($B17,10)>=ROUNDDOWN(SeznamPredavanj[ČAS ZAČETKA],10))*($B17<=SeznamPredavanj[ČAS KONCA]),SeznamPredavanj[EDINSTVENO]),SeznamPredavanj[EDINSTVENO],0),2),0)","v":0}]
[null,"11:30:00",{"$f":"IFERROR(INDEX(SeznamPredavanj[],MATCH(SUMPRODUCT((SeznamPredavanj[DAN]=UrnikPredavanj[[#Headers],[NEDELJA]])*(ROUNDDOWN($B18,10)>=ROUNDDOWN(SeznamPredavanj[ČAS ZAČETKA],10))*($B18<=SeznamPredavanj[ČAS KONCA]),SeznamPredavanj[EDINSTVENO]),SeznamPredavanj[EDINSTVENO],0),2),0)","v":0},{"$f":"IFERROR(INDEX(SeznamPredavanj[],MATCH(SUMPRODUCT((SeznamPredavanj[DAN]=UrnikPredavanj[[#Headers],[PONEDELJEK]])*(ROUNDDOWN($B18,10)>=ROUNDDOWN(SeznamPredavanj[ČAS ZAČETKA],10))*($B18<=SeznamPredavanj[ČAS KONCA]),SeznamPredavanj[EDINSTVENO]),SeznamPredavanj[EDINSTVENO],0),2),0)","v":0},{"$f":"IFERROR(INDEX(SeznamPredavanj[],MATCH(SUMPRODUCT((SeznamPredavanj[DAN]=UrnikPredavanj[[#Headers],[TOREK]])*(ROUNDDOWN($B18,10)>=ROUNDDOWN(SeznamPredavanj[ČAS ZAČETKA],10))*($B18<=SeznamPredavanj[ČAS KONCA]),SeznamPredavanj[EDINSTVENO]),SeznamPredavanj[EDINSTVENO],0),2),0)","v":"HPE-295"},{"$f":"IFERROR(INDEX(SeznamPredavanj[],MATCH(SUMPRODUCT((SeznamPredavanj[DAN]=UrnikPredavanj[[#Headers],[SREDA]])*(ROUNDDOWN($B18,10)>=ROUNDDOWN(SeznamPredavanj[ČAS ZAČETKA],10))*($B18<=SeznamPredavanj[ČAS KONCA]),SeznamPredavanj[EDINSTVENO]),SeznamPredavanj[EDINSTVENO],0),2),0)","v":0},{"$f":"IFERROR(INDEX(SeznamPredavanj[],MATCH(SUMPRODUCT((SeznamPredavanj[DAN]=UrnikPredavanj[[#Headers],[ČETRTEK]])*(ROUNDDOWN($B18,10)>=ROUNDDOWN(SeznamPredavanj[ČAS ZAČETKA],10))*($B18<=SeznamPredavanj[ČAS KONCA]),SeznamPredavanj[EDINSTVENO]),SeznamPredavanj[EDINSTVENO],0),2),0)","v":"HPE-295"},{"$f":"IFERROR(INDEX(SeznamPredavanj[],MATCH(SUMPRODUCT((SeznamPredavanj[DAN]=UrnikPredavanj[[#Headers],[PETEK]])*(ROUNDDOWN($B18,10)>=ROUNDDOWN(SeznamPredavanj[ČAS ZAČETKA],10))*($B18<=SeznamPredavanj[ČAS KONCA]),SeznamPredavanj[EDINSTVENO]),SeznamPredavanj[EDINSTVENO],0),2),0)","v":0},{"$f":"IFERROR(INDEX(SeznamPredavanj[],MATCH(SUMPRODUCT((SeznamPredavanj[DAN]=UrnikPredavanj[[#Headers],[SOBOTA]])*(ROUNDDOWN($B18,10)>=ROUNDDOWN(SeznamPredavanj[ČAS ZAČETKA],10))*($B18<=SeznamPredavanj[ČAS KONCA]),SeznamPredavanj[EDINSTVENO]),SeznamPredavanj[EDINSTVENO],0),2),0)","v":0}]
[null,"11:45:00",{"$f":"IFERROR(INDEX(SeznamPredavanj[],MATCH(SUMPRODUCT((SeznamPredavanj[DAN]=UrnikPredavanj[[#Headers],[NEDELJA]])*(ROUNDDOWN($B19,10)>=ROUNDDOWN(SeznamPredavanj[ČAS ZAČETKA],10))*($B19<=SeznamPredavanj[ČAS KONCA]),SeznamPredavanj[EDINSTVENO]),SeznamPredavanj[EDINSTVENO],0),2),0)","v":0},{"$f":"IFERROR(INDEX(SeznamPredavanj[],MATCH(SUMPRODUCT((SeznamPredavanj[DAN]=UrnikPredavanj[[#Headers],[PONEDELJEK]])*(ROUNDDOWN($B19,10)>=ROUNDDOWN(SeznamPredavanj[ČAS ZAČETKA],10))*($B19<=SeznamPredavanj[ČAS KONCA]),SeznamPredavanj[EDINSTVENO]),SeznamPredavanj[EDINSTVENO],0),2),0)","v":0},{"$f":"IFERROR(INDEX(SeznamPredavanj[],MATCH(SUMPRODUCT((SeznamPredavanj[DAN]=UrnikPredavanj[[#Headers],[TOREK]])*(ROUNDDOWN($B19,10)>=ROUNDDOWN(SeznamPredavanj[ČAS ZAČETKA],10))*($B19<=SeznamPredavanj[ČAS KONCA]),SeznamPredavanj[EDINSTVENO]),SeznamPredavanj[EDINSTVENO],0),2),0)","v":"HPE-295"},{"$f":"IFERROR(INDEX(SeznamPredavanj[],MATCH(SUMPRODUCT((SeznamPredavanj[DAN]=UrnikPredavanj[[#Headers],[SREDA]])*(ROUNDDOWN($B19,10)>=ROUNDDOWN(SeznamPredavanj[ČAS ZAČETKA],10))*($B19<=SeznamPredavanj[ČAS KONCA]),SeznamPredavanj[EDINSTVENO]),SeznamPredavanj[EDINSTVENO],0),2),0)","v":0},{"$f":"IFERROR(INDEX(SeznamPredavanj[],MATCH(SUMPRODUCT((SeznamPredavanj[DAN]=UrnikPredavanj[[#Headers],[ČETRTEK]])*(ROUNDDOWN($B19,10)>=ROUNDDOWN(SeznamPredavanj[ČAS ZAČETKA],10))*($B19<=SeznamPredavanj[ČAS KONCA]),SeznamPredavanj[EDINSTVENO]),SeznamPredavanj[EDINSTVENO],0),2),0)","v":"HPE-295"},{"$f":"IFERROR(INDEX(SeznamPredavanj[],MATCH(SUMPRODUCT((SeznamPredavanj[DAN]=UrnikPredavanj[[#Headers],[PETEK]])*(ROUNDDOWN($B19,10)>=ROUNDDOWN(SeznamPredavanj[ČAS ZAČETKA],10))*($B19<=SeznamPredavanj[ČAS KONCA]),SeznamPredavanj[EDINSTVENO]),SeznamPredavanj[EDINSTVENO],0),2),0)","v":0},{"$f":"IFERROR(INDEX(SeznamPredavanj[],MATCH(SUMPRODUCT((SeznamPredavanj[DAN]=UrnikPredavanj[[#Headers],[SOBOTA]])*(ROUNDDOWN($B19,10)>=ROUNDDOWN(SeznamPredavanj[ČAS ZAČETKA],10))*($B19<=SeznamPredavanj[ČAS KONCA]),SeznamPredavanj[EDINSTVENO]),SeznamPredavanj[EDINSTVENO],0),2),0)","v":0}]
[null,"12:00:00",{"$f":"IFERROR(INDEX(SeznamPredavanj[],MATCH(SUMPRODUCT((SeznamPredavanj[DAN]=UrnikPredavanj[[#Headers],[NEDELJA]])*(ROUNDDOWN($B20,10)>=ROUNDDOWN(SeznamPredavanj[ČAS ZAČETKA],10))*($B20<=SeznamPredavanj[ČAS KONCA]),SeznamPredavanj[EDINSTVENO]),SeznamPredavanj[EDINSTVENO],0),2),0)","v":0},{"$f":"IFERROR(INDEX(SeznamPredavanj[],MATCH(SUMPRODUCT((SeznamPredavanj[DAN]=UrnikPredavanj[[#Headers],[PONEDELJEK]])*(ROUNDDOWN($B20,10)>=ROUNDDOWN(SeznamPredavanj[ČAS ZAČETKA],10))*($B20<=SeznamPredavanj[ČAS KONCA]),SeznamPredavanj[EDINSTVENO]),SeznamPredavanj[EDINSTVENO],0),2),0)","v":0},{"$f":"IFERROR(INDEX(SeznamPredavanj[],MATCH(SUMPRODUCT((SeznamPredavanj[DAN]=UrnikPredavanj[[#Headers],[TOREK]])*(ROUNDDOWN($B20,10)>=ROUNDDOWN(SeznamPredavanj[ČAS ZAČETKA],10))*($B20<=SeznamPredavanj[ČAS KONCA]),SeznamPredavanj[EDINSTVENO]),SeznamPredavanj[EDINSTVENO],0),2),0)","v":"HPE-295"},{"$f":"IFERROR(INDEX(SeznamPredavanj[],MATCH(SUMPRODUCT((SeznamPredavanj[DAN]=UrnikPredavanj[[#Headers],[SREDA]])*(ROUNDDOWN($B20,10)>=ROUNDDOWN(SeznamPredavanj[ČAS ZAČETKA],10))*($B20<=SeznamPredavanj[ČAS KONCA]),SeznamPredavanj[EDINSTVENO]),SeznamPredavanj[EDINSTVENO],0),2),0)","v":0},{"$f":"IFERROR(INDEX(SeznamPredavanj[],MATCH(SUMPRODUCT((SeznamPredavanj[DAN]=UrnikPredavanj[[#Headers],[ČETRTEK]])*(ROUNDDOWN($B20,10)>=ROUNDDOWN(SeznamPredavanj[ČAS ZAČETKA],10))*($B20<=SeznamPredavanj[ČAS KONCA]),SeznamPredavanj[EDINSTVENO]),SeznamPredavanj[EDINSTVENO],0),2),0)","v":"HPE-295"},{"$f":"IFERROR(INDEX(SeznamPredavanj[],MATCH(SUMPRODUCT((SeznamPredavanj[DAN]=UrnikPredavanj[[#Headers],[PETEK]])*(ROUNDDOWN($B20,10)>=ROUNDDOWN(SeznamPredavanj[ČAS ZAČETKA],10))*($B20<=SeznamPredavanj[ČAS KONCA]),SeznamPredavanj[EDINSTVENO]),SeznamPredavanj[EDINSTVENO],0),2),0)","v":0},{"$f":"IFERROR(INDEX(SeznamPredavanj[],MATCH(SUMPRODUCT((SeznamPredavanj[DAN]=UrnikPredavanj[[#Headers],[SOBOTA]])*(ROUNDDOWN($B20,10)>=ROUNDDOWN(SeznamPredavanj[ČAS ZAČETKA],10))*($B20<=SeznamPredavanj[ČAS KONCA]),SeznamPredavanj[EDINSTVENO]),SeznamPredavanj[EDINSTVENO],0),2),0)","v":0}]
[null,"12:15:00",{"$f":"IFERROR(INDEX(SeznamPredavanj[],MATCH(SUMPRODUCT((SeznamPredavanj[DAN]=UrnikPredavanj[[#Headers],[NEDELJA]])*(ROUNDDOWN($B21,10)>=ROUNDDOWN(SeznamPredavanj[ČAS ZAČETKA],10))*($B21<=SeznamPredavanj[ČAS KONCA]),SeznamPredavanj[EDINSTVENO]),SeznamPredavanj[EDINSTVENO],0),2),0)","v":0},{"$f":"IFERROR(INDEX(SeznamPredavanj[],MATCH(SUMPRODUCT((SeznamPredavanj[DAN]=UrnikPredavanj[[#Headers],[PONEDELJEK]])*(ROUNDDOWN($B21,10)>=ROUNDDOWN(SeznamPredavanj[ČAS ZAČETKA],10))*($B21<=SeznamPredavanj[ČAS KONCA]),SeznamPredavanj[EDINSTVENO]),SeznamPredavanj[EDINSTVENO],0),2),0)","v":0},{"$f":"IFERROR(INDEX(SeznamPredavanj[],MATCH(SUMPRODUCT((SeznamPredavanj[DAN]=UrnikPredavanj[[#Headers],[TOREK]])*(ROUNDDOWN($B21,10)>=ROUNDDOWN(SeznamPredavanj[ČAS ZAČETKA],10))*($B21<=SeznamPredavanj[ČAS KONCA]),SeznamPredavanj[EDINSTVENO]),SeznamPredavanj[EDINSTVENO],0),2),0)","v":0},{"$f":"IFERROR(INDEX(SeznamPredavanj[],MATCH(SUMPRODUCT((SeznamPredavanj[DAN]=UrnikPredavanj[[#Headers],[SREDA]])*(ROUNDDOWN($B21,10)>=ROUNDDOWN(SeznamPredavanj[ČAS ZAČETKA],10))*($B21<=SeznamPredavanj[ČAS KONCA]),SeznamPredavanj[EDINSTVENO]),SeznamPredavanj[EDINSTVENO],0),2),0)","v":0},{"$f":"IFERROR(INDEX(SeznamPredavanj[],MATCH(SUMPRODUCT((SeznamPredavanj[DAN]=UrnikPredavanj[[#Headers],[ČETRTEK]])*(ROUNDDOWN($B21,10)>=ROUNDDOWN(SeznamPredavanj[ČAS ZAČETKA],10))*($B21<=SeznamPredavanj[ČAS KONCA]),SeznamPredavanj[EDINSTVENO]),SeznamPredavanj[EDINSTVENO],0),2),0)","v":0},{"$f":"IFERROR(INDEX(SeznamPredavanj[],MATCH(SUMPRODUCT((SeznamPredavanj[DAN]=UrnikPredavanj[[#Headers],[PETEK]])*(ROUNDDOWN($B21,10)>=ROUNDDOWN(SeznamPredavanj[ČAS ZAČETKA],10))*($B21<=SeznamPredavanj[ČAS KONCA]),SeznamPredavanj[EDINSTVENO]),SeznamPredavanj[EDINSTVENO],0),2),0)","v":0},{"$f":"IFERROR(INDEX(SeznamPredavanj[],MATCH(SUMPRODUCT((SeznamPredavanj[DAN]=UrnikPredavanj[[#Headers],[SOBOTA]])*(ROUNDDOWN($B21,10)>=ROUNDDOWN(SeznamPredavanj[ČAS ZAČETKA],10))*($B21<=SeznamPredavanj[ČAS KONCA]),SeznamPredavanj[EDINSTVENO]),SeznamPredavanj[EDINSTVENO],0),2),0)","v":0}]
[null,"12:30:00",{"$f":"IFERROR(INDEX(SeznamPredavanj[],MATCH(SUMPRODUCT((SeznamPredavanj[DAN]=UrnikPredavanj[[#Headers],[NEDELJA]])*(ROUNDDOWN($B22,10)>=ROUNDDOWN(SeznamPredavanj[ČAS ZAČETKA],10))*($B22<=SeznamPredavanj[ČAS KONCA]),SeznamPredavanj[EDINSTVENO]),SeznamPredavanj[EDINSTVENO],0),2),0)","v":0},{"$f":"IFERROR(INDEX(SeznamPredavanj[],MATCH(SUMPRODUCT((SeznamPredavanj[DAN]=UrnikPredavanj[[#Headers],[PONEDELJEK]])*(ROUNDDOWN($B22,10)>=ROUNDDOWN(SeznamPredavanj[ČAS ZAČETKA],10))*($B22<=SeznamPredavanj[ČAS KONCA]),SeznamPredavanj[EDINSTVENO]),SeznamPredavanj[EDINSTVENO],0),2),0)","v":0},{"$f":"IFERROR(INDEX(SeznamPredavanj[],MATCH(SUMPRODUCT((SeznamPredavanj[DAN]=UrnikPredavanj[[#Headers],[TOREK]])*(ROUNDDOWN($B22,10)>=ROUNDDOWN(SeznamPredavanj[ČAS ZAČETKA],10))*($B22<=SeznamPredavanj[ČAS KONCA]),SeznamPredavanj[EDINSTVENO]),SeznamPredavanj[EDINSTVENO],0),2),0)","v":0},{"$f":"IFERROR(INDEX(SeznamPredavanj[],MATCH(SUMPRODUCT((SeznamPredavanj[DAN]=UrnikPredavanj[[#Headers],[SREDA]])*(ROUNDDOWN($B22,10)>=ROUNDDOWN(SeznamPredavanj[ČAS ZAČETKA],10))*($B22<=SeznamPredavanj[ČAS KONCA]),SeznamPredavanj[EDINSTVENO]),SeznamPredavanj[EDINSTVENO],0),2),0)","v":0},{"$f":"IFERROR(INDEX(SeznamPredavanj[],MATCH(SUMPRODUCT((SeznamPredavanj[DAN]=UrnikPredavanj[[#Headers],[ČETRTEK]])*(ROUNDDOWN($B22,10)>=ROUNDDOWN(SeznamPredavanj[ČAS ZAČETKA],10))*($B22<=SeznamPredavanj[ČAS KONCA]),SeznamPredavanj[EDINSTVENO]),SeznamPredavanj[EDINSTVENO],0),2),0)","v":0},{"$f":"IFERROR(INDEX(SeznamPredavanj[],MATCH(SUMPRODUCT((SeznamPredavanj[DAN]=UrnikPredavanj[[#Headers],[PETEK]])*(ROUNDDOWN($B22,10)>=ROUNDDOWN(SeznamPredavanj[ČAS ZAČETKA],10))*($B22<=SeznamPredavanj[ČAS KONCA]),SeznamPredavanj[EDINSTVENO]),SeznamPredavanj[EDINSTVENO],0),2),0)","v":0},{"$f":"IFERROR(INDEX(SeznamPredavanj[],MATCH(SUMPRODUCT((SeznamPredavanj[DAN]=UrnikPredavanj[[#Headers],[SOBOTA]])*(ROUNDDOWN($B22,10)>=ROUNDDOWN(SeznamPredavanj[ČAS ZAČETKA],10))*($B22<=SeznamPredavanj[ČAS KONCA]),SeznamPredavanj[EDINSTVENO]),SeznamPredavanj[EDINSTVENO],0),2),0)","v":0}]
[null,"12:45:00",{"$f":"IFERROR(INDEX(SeznamPredavanj[],MATCH(SUMPRODUCT((SeznamPredavanj[DAN]=UrnikPredavanj[[#Headers],[NEDELJA]])*(ROUNDDOWN($B23,10)>=ROUNDDOWN(SeznamPredavanj[ČAS ZAČETKA],10))*($B23<=SeznamPredavanj[ČAS KONCA]),SeznamPredavanj[EDINSTVENO]),SeznamPredavanj[EDINSTVENO],0),2),0)","v":0},{"$f":"IFERROR(INDEX(SeznamPredavanj[],MATCH(SUMPRODUCT((SeznamPredavanj[DAN]=UrnikPredavanj[[#Headers],[PONEDELJEK]])*(ROUNDDOWN($B23,10)>=ROUNDDOWN(SeznamPredavanj[ČAS ZAČETKA],10))*($B23<=SeznamPredavanj[ČAS KONCA]),SeznamPredavanj[EDINSTVENO]),SeznamPredavanj[EDINSTVENO],0),2),0)","v":0},{"$f":"IFERROR(INDEX(SeznamPredavanj[],MATCH(SUMPRODUCT((SeznamPredavanj[DAN]=UrnikPredavanj[[#Headers],[TOREK]])*(ROUNDDOWN($B23,10)>=ROUNDDOWN(SeznamPredavanj[ČAS ZAČETKA],10))*($B23<=SeznamPredavanj[ČAS KONCA]),SeznamPredavanj[EDINSTVENO]),SeznamPredavanj[EDINSTVENO],0),2),0)","v":0},{"$f":"IFERROR(INDEX(SeznamPredavanj[],MATCH(SUMPRODUCT((SeznamPredavanj[DAN]=UrnikPredavanj[[#Headers],[SREDA]])*(ROUNDDOWN($B23,10)>=ROUNDDOWN(SeznamPredavanj[ČAS ZAČETKA],10))*($B23<=SeznamPredavanj[ČAS KONCA]),SeznamPredavanj[EDINSTVENO]),SeznamPredavanj[EDINSTVENO],0),2),0)","v":0},{"$f":"IFERROR(INDEX(SeznamPredavanj[],MATCH(SUMPRODUCT((SeznamPredavanj[DAN]=UrnikPredavanj[[#Headers],[ČETRTEK]])*(ROUNDDOWN($B23,10)>=ROUNDDOWN(SeznamPredavanj[ČAS ZAČETKA],10))*($B23<=SeznamPredavanj[ČAS KONCA]),SeznamPredavanj[EDINSTVENO]),SeznamPredavanj[EDINSTVENO],0),2),0)","v":0},{"$f":"IFERROR(INDEX(SeznamPredavanj[],MATCH(SUMPRODUCT((SeznamPredavanj[DAN]=UrnikPredavanj[[#Headers],[PETEK]])*(ROUNDDOWN($B23,10)>=ROUNDDOWN(SeznamPredavanj[ČAS ZAČETKA],10))*($B23<=SeznamPredavanj[ČAS KONCA]),SeznamPredavanj[EDINSTVENO]),SeznamPredavanj[EDINSTVENO],0),2),0)","v":0},{"$f":"IFERROR(INDEX(SeznamPredavanj[],MATCH(SUMPRODUCT((SeznamPredavanj[DAN]=UrnikPredavanj[[#Headers],[SOBOTA]])*(ROUNDDOWN($B23,10)>=ROUNDDOWN(SeznamPredavanj[ČAS ZAČETKA],10))*($B23<=SeznamPredavanj[ČAS KONCA]),SeznamPredavanj[EDINSTVENO]),SeznamPredavanj[EDINSTVENO],0),2),0)","v":0}]
[null,"13:00:00",{"$f":"IFERROR(INDEX(SeznamPredavanj[],MATCH(SUMPRODUCT((SeznamPredavanj[DAN]=UrnikPredavanj[[#Headers],[NEDELJA]])*(ROUNDDOWN($B24,10)>=ROUNDDOWN(SeznamPredavanj[ČAS ZAČETKA],10))*($B24<=SeznamPredavanj[ČAS KONCA]),SeznamPredavanj[EDINSTVENO]),SeznamPredavanj[EDINSTVENO],0),2),0)","v":0},{"$f":"IFERROR(INDEX(SeznamPredavanj[],MATCH(SUMPRODUCT((SeznamPredavanj[DAN]=UrnikPredavanj[[#Headers],[PONEDELJEK]])*(ROUNDDOWN($B24,10)>=ROUNDDOWN(SeznamPredavanj[ČAS ZAČETKA],10))*($B24<=SeznamPredavanj[ČAS KONCA]),SeznamPredavanj[EDINSTVENO]),SeznamPredavanj[EDINSTVENO],0),2),0)","v":"VR-121"},{"$f":"IFERROR(INDEX(SeznamPredavanj[],MATCH(SUMPRODUCT((SeznamPredavanj[DAN]=UrnikPredavanj[[#Headers],[TOREK]])*(ROUNDDOWN($B24,10)>=ROUNDDOWN(SeznamPredavanj[ČAS ZAČETKA],10))*($B24<=SeznamPredavanj[ČAS KONCA]),SeznamPredavanj[EDINSTVENO]),SeznamPredavanj[EDINSTVENO],0),2),0)","v":0},{"$f":"IFERROR(INDEX(SeznamPredavanj[],MATCH(SUMPRODUCT((SeznamPredavanj[DAN]=UrnikPredavanj[[#Headers],[SREDA]])*(ROUNDDOWN($B24,10)>=ROUNDDOWN(SeznamPredavanj[ČAS ZAČETKA],10))*($B24<=SeznamPredavanj[ČAS KONCA]),SeznamPredavanj[EDINSTVENO]),SeznamPredavanj[EDINSTVENO],0),2),0)","v":"VR-121"},{"$f":"IFERROR(INDEX(SeznamPredavanj[],MATCH(SUMPRODUCT((SeznamPredavanj[DAN]=UrnikPredavanj[[#Headers],[ČETRTEK]])*(ROUNDDOWN($B24,10)>=ROUNDDOWN(SeznamPredavanj[ČAS ZAČETKA],10))*($B24<=SeznamPredavanj[ČAS KONCA]),SeznamPredavanj[EDINSTVENO]),SeznamPredavanj[EDINSTVENO],0),2),0)","v":0},{"$f":"IFERROR(INDEX(SeznamPredavanj[],MATCH(SUMPRODUCT((SeznamPredavanj[DAN]=UrnikPredavanj[[#Headers],[PETEK]])*(ROUNDDOWN($B24,10)>=ROUNDDOWN(SeznamPredavanj[ČAS ZAČETKA],10))*($B24<=SeznamPredavanj[ČAS KONCA]),SeznamPredavanj[EDINSTVENO]),SeznamPredavanj[EDINSTVENO],0),2),0)","v":0},{"$f":"IFERROR(INDEX(SeznamPredavanj[],MATCH(SUMPRODUCT((SeznamPredavanj[DAN]=UrnikPredavanj[[#Headers],[SOBOTA]])*(ROUNDDOWN($B24,10)>=ROUNDDOWN(SeznamPredavanj[ČAS ZAČETKA],10))*($B24<=SeznamPredavanj[ČAS KONCA]),SeznamPredavanj[EDINSTVENO]),SeznamPredavanj[EDINSTVENO],0),2),0)","v":0}]
[null,"13:15:00",{"$f":"IFERROR(INDEX(SeznamPredavanj[],MATCH(SUMPRODUCT((SeznamPredavanj[DAN]=UrnikPredavanj[[#Headers],[NEDELJA]])*(ROUNDDOWN($B25,10)>=ROUNDDOWN(SeznamPredavanj[ČAS ZAČETKA],10))*($B25<=SeznamPredavanj[ČAS KONCA]),SeznamPredavanj[EDINSTVENO]),SeznamPredavanj[EDINSTVENO],0),2),0)","v":0},{"$f":"IFERROR(INDEX(SeznamPredavanj[],MATCH(SUMPRODUCT((SeznamPredavanj[DAN]=UrnikPredavanj[[#Headers],[PONEDELJEK]])*(ROUNDDOWN($B25,10)>=ROUNDDOWN(SeznamPredavanj[ČAS ZAČETKA],10))*($B25<=SeznamPredavanj[ČAS KONCA]),SeznamPredavanj[EDINSTVENO]),SeznamPredavanj[EDINSTVENO],0),2),0)","v":"VR-121"},{"$f":"IFERROR(INDEX(SeznamPredavanj[],MATCH(SUMPRODUCT((SeznamPredavanj[DAN]=UrnikPredavanj[[#Headers],[TOREK]])*(ROUNDDOWN($B25,10)>=ROUNDDOWN(SeznamPredavanj[ČAS ZAČETKA],10))*($B25<=SeznamPredavanj[ČAS KONCA]),SeznamPredavanj[EDINSTVENO]),SeznamPredavanj[EDINSTVENO],0),2),0)","v":0},{"$f":"IFERROR(INDEX(SeznamPredavanj[],MATCH(SUMPRODUCT((SeznamPredavanj[DAN]=UrnikPredavanj[[#Headers],[SREDA]])*(ROUNDDOWN($B25,10)>=ROUNDDOWN(SeznamPredavanj[ČAS ZAČETKA],10))*($B25<=SeznamPredavanj[ČAS KONCA]),SeznamPredavanj[EDINSTVENO]),SeznamPredavanj[EDINSTVENO],0),2),0)","v":"VR-121"},{"$f":"IFERROR(INDEX(SeznamPredavanj[],MATCH(SUMPRODUCT((SeznamPredavanj[DAN]=UrnikPredavanj[[#Headers],[ČETRTEK]])*(ROUNDDOWN($B25,10)>=ROUNDDOWN(SeznamPredavanj[ČAS ZAČETKA],10))*($B25<=SeznamPredavanj[ČAS KONCA]),SeznamPredavanj[EDINSTVENO]),SeznamPredavanj[EDINSTVENO],0),2),0)","v":0},{"$f":"IFERROR(INDEX(SeznamPredavanj[],MATCH(SUMPRODUCT((SeznamPredavanj[DAN]=UrnikPredavanj[[#Headers],[PETEK]])*(ROUNDDOWN($B25,10)>=ROUNDDOWN(SeznamPredavanj[ČAS ZAČETKA],10))*($B25<=SeznamPredavanj[ČAS KONCA]),SeznamPredavanj[EDINSTVENO]),SeznamPredavanj[EDINSTVENO],0),2),0)","v":0},{"$f":"IFERROR(INDEX(SeznamPredavanj[],MATCH(SUMPRODUCT((SeznamPredavanj[DAN]=UrnikPredavanj[[#Headers],[SOBOTA]])*(ROUNDDOWN($B25,10)>=ROUNDDOWN(SeznamPredavanj[ČAS ZAČETKA],10))*($B25<=SeznamPredavanj[ČAS KONCA]),SeznamPredavanj[EDINSTVENO]),SeznamPredavanj[EDINSTVENO],0),2),0)","v":0}]
[null,"13:30:00",{"$f":"IFERROR(INDEX(SeznamPredavanj[],MATCH(SUMPRODUCT((SeznamPredavanj[DAN]=UrnikPredavanj[[#Headers],[NEDELJA]])*(ROUNDDOWN($B26,10)>=ROUNDDOWN(SeznamPredavanj[ČAS ZAČETKA],10))*($B26<=SeznamPredavanj[ČAS KONCA]),SeznamPredavanj[EDINSTVENO]),SeznamPredavanj[EDINSTVENO],0),2),0)","v":0},{"$f":"IFERROR(INDEX(SeznamPredavanj[],MATCH(SUMPRODUCT((SeznamPredavanj[DAN]=UrnikPredavanj[[#Headers],[PONEDELJEK]])*(ROUNDDOWN($B26,10)>=ROUNDDOWN(SeznamPredavanj[ČAS ZAČETKA],10))*($B26<=SeznamPredavanj[ČAS KONCA]),SeznamPredavanj[EDINSTVENO]),SeznamPredavanj[EDINSTVENO],0),2),0)","v":"VR-121"},{"$f":"IFERROR(INDEX(SeznamPredavanj[],MATCH(SUMPRODUCT((SeznamPredavanj[DAN]=UrnikPredavanj[[#Headers],[TOREK]])*(ROUNDDOWN($B26,10)>=ROUNDDOWN(SeznamPredavanj[ČAS ZAČETKA],10))*($B26<=SeznamPredavanj[ČAS KONCA]),SeznamPredavanj[EDINSTVENO]),SeznamPredavanj[EDINSTVENO],0),2),0)","v":0},{"$f":"IFERROR(INDEX(SeznamPredavanj[],MATCH(SUMPRODUCT((SeznamPredavanj[DAN]=UrnikPredavanj[[#Headers],[SREDA]])*(ROUNDDOWN($B26,10)>=ROUNDDOWN(SeznamPredavanj[ČAS ZAČETKA],10))*($B26<=SeznamPredavanj[ČAS KONCA]),SeznamPredavanj[EDINSTVENO]),SeznamPredavanj[EDINSTVENO],0),2),0)","v":"VR-121"},{"$f":"IFERROR(INDEX(SeznamPredavanj[],MATCH(SUMPRODUCT((SeznamPredavanj[DAN]=UrnikPredavanj[[#Headers],[ČETRTEK]])*(ROUNDDOWN($B26,10)>=ROUNDDOWN(SeznamPredavanj[ČAS ZAČETKA],10))*($B26<=SeznamPredavanj[ČAS KONCA]),SeznamPredavanj[EDINSTVENO]),SeznamPredavanj[EDINSTVENO],0),2),0)","v":0},{"$f":"IFERROR(INDEX(SeznamPredavanj[],MATCH(SUMPRODUCT((SeznamPredavanj[DAN]=UrnikPredavanj[[#Headers],[PETEK]])*(ROUNDDOWN($B26,10)>=ROUNDDOWN(SeznamPredavanj[ČAS ZAČETKA],10))*($B26<=SeznamPredavanj[ČAS KONCA]),SeznamPredavanj[EDINSTVENO]),SeznamPredavanj[EDINSTVENO],0),2),0)","v":0},{"$f":"IFERROR(INDEX(SeznamPredavanj[],MATCH(SUMPRODUCT((SeznamPredavanj[DAN]=UrnikPredavanj[[#Headers],[SOBOTA]])*(ROUNDDOWN($B26,10)>=ROUNDDOWN(SeznamPredavanj[ČAS ZAČETKA],10))*($B26<=SeznamPredavanj[ČAS KONCA]),SeznamPredavanj[EDINSTVENO]),SeznamPredavanj[EDINSTVENO],0),2),0)","v":0}]
[null,"13:45:00",{"$f":"IFERROR(INDEX(SeznamPredavanj[],MATCH(SUMPRODUCT((SeznamPredavanj[DAN]=UrnikPredavanj[[#Headers],[NEDELJA]])*(ROUNDDOWN($B27,10)>=ROUNDDOWN(SeznamPredavanj[ČAS ZAČETKA],10))*($B27<=SeznamPredavanj[ČAS KONCA]),SeznamPredavanj[EDINSTVENO]),SeznamPredavanj[EDINSTVENO],0),2),0)","v":0},{"$f":"IFERROR(INDEX(SeznamPredavanj[],MATCH(SUMPRODUCT((SeznamPredavanj[DAN]=UrnikPredavanj[[#Headers],[PONEDELJEK]])*(ROUNDDOWN($B27,10)>=ROUNDDOWN(SeznamPredavanj[ČAS ZAČETKA],10))*($B27<=SeznamPredavanj[ČAS KONCA]),SeznamPredavanj[EDINSTVENO]),SeznamPredavanj[EDINSTVENO],0),2),0)","v":"VR-121"},{"$f":"IFERROR(INDEX(SeznamPredavanj[],MATCH(SUMPRODUCT((SeznamPredavanj[DAN]=UrnikPredavanj[[#Headers],[TOREK]])*(ROUNDDOWN($B27,10)>=ROUNDDOWN(SeznamPredavanj[ČAS ZAČETKA],10))*($B27<=SeznamPredavanj[ČAS KONCA]),SeznamPredavanj[EDINSTVENO]),SeznamPredavanj[EDINSTVENO],0),2),0)","v":0},{"$f":"IFERROR(INDEX(SeznamPredavanj[],MATCH(SUMPRODUCT((SeznamPredavanj[DAN]=UrnikPredavanj[[#Headers],[SREDA]])*(ROUNDDOWN($B27,10)>=ROUNDDOWN(SeznamPredavanj[ČAS ZAČETKA],10))*($B27<=SeznamPredavanj[ČAS KONCA]),SeznamPredavanj[EDINSTVENO]),SeznamPredavanj[EDINSTVENO],0),2),0)","v":"VR-121"},{"$f":"IFERROR(INDEX(SeznamPredavanj[],MATCH(SUMPRODUCT((SeznamPredavanj[DAN]=UrnikPredavanj[[#Headers],[ČETRTEK]])*(ROUNDDOWN($B27,10)>=ROUNDDOWN(SeznamPredavanj[ČAS ZAČETKA],10))*($B27<=SeznamPredavanj[ČAS KONCA]),SeznamPredavanj[EDINSTVENO]),SeznamPredavanj[EDINSTVENO],0),2),0)","v":0},{"$f":"IFERROR(INDEX(SeznamPredavanj[],MATCH(SUMPRODUCT((SeznamPredavanj[DAN]=UrnikPredavanj[[#Headers],[PETEK]])*(ROUNDDOWN($B27,10)>=ROUNDDOWN(SeznamPredavanj[ČAS ZAČETKA],10))*($B27<=SeznamPredavanj[ČAS KONCA]),SeznamPredavanj[EDINSTVENO]),SeznamPredavanj[EDINSTVENO],0),2),0)","v":0},{"$f":"IFERROR(INDEX(SeznamPredavanj[],MATCH(SUMPRODUCT((SeznamPredavanj[DAN]=UrnikPredavanj[[#Headers],[SOBOTA]])*(ROUNDDOWN($B27,10)>=ROUNDDOWN(SeznamPredavanj[ČAS ZAČETKA],10))*($B27<=SeznamPredavanj[ČAS KONCA]),SeznamPredavanj[EDINSTVENO]),SeznamPredavanj[EDINSTVENO],0),2),0)","v":0}]
[null,"14:00:00",{"$f":"IFERROR(INDEX(SeznamPredavanj[],MATCH(SUMPRODUCT((SeznamPredavanj[DAN]=UrnikPredavanj[[#Headers],[NEDELJA]])*(ROUNDDOWN($B28,10)>=ROUNDDOWN(SeznamPredavanj[ČAS ZAČETKA],10))*($B28<=SeznamPredavanj[ČAS KONCA]),SeznamPredavanj[EDINSTVENO]),SeznamPredavanj[EDINSTVENO],0),2),0)","v":0},{"$f":"IFERROR(INDEX(SeznamPredavanj[],MATCH(SUMPRODUCT((SeznamPredavanj[DAN]=UrnikPredavanj[[#Headers],[PONEDELJEK]])*(ROUNDDOWN($B28,10)>=ROUNDDOWN(SeznamPredavanj[ČAS ZAČETKA],10))*($B28<=SeznamPredavanj[ČAS KONCA]),SeznamPredavanj[EDINSTVENO]),SeznamPredavanj[EDINSTVENO],0),2),0)","v":"VR-121"},{"$f":"IFERROR(INDEX(SeznamPredavanj[],MATCH(SUMPRODUCT((SeznamPredavanj[DAN]=UrnikPredavanj[[#Headers],[TOREK]])*(ROUNDDOWN($B28,10)>=ROUNDDOWN(SeznamPredavanj[ČAS ZAČETKA],10))*($B28<=SeznamPredavanj[ČAS KONCA]),SeznamPredavanj[EDINSTVENO]),SeznamPredavanj[EDINSTVENO],0),2),0)","v":0},{"$f":"IFERROR(INDEX(SeznamPredavanj[],MATCH(SUMPRODUCT((SeznamPredavanj[DAN]=UrnikPredavanj[[#Headers],[SREDA]])*(ROUNDDOWN($B28,10)>=ROUNDDOWN(SeznamPredavanj[ČAS ZAČETKA],10))*($B28<=SeznamPredavanj[ČAS KONCA]),SeznamPredavanj[EDINSTVENO]),SeznamPredavanj[EDINSTVENO],0),2),0)","v":"VR-121"},{"$f":"IFERROR(INDEX(SeznamPredavanj[],MATCH(SUMPRODUCT((SeznamPredavanj[DAN]=UrnikPredavanj[[#Headers],[ČETRTEK]])*(ROUNDDOWN($B28,10)>=ROUNDDOWN(SeznamPredavanj[ČAS ZAČETKA],10))*($B28<=SeznamPredavanj[ČAS KONCA]),SeznamPredavanj[EDINSTVENO]),SeznamPredavanj[EDINSTVENO],0),2),0)","v":0},{"$f":"IFERROR(INDEX(SeznamPredavanj[],MATCH(SUMPRODUCT((SeznamPredavanj[DAN]=UrnikPredavanj[[#Headers],[PETEK]])*(ROUNDDOWN($B28,10)>=ROUNDDOWN(SeznamPredavanj[ČAS ZAČETKA],10))*($B28<=SeznamPredavanj[ČAS KONCA]),SeznamPredavanj[EDINSTVENO]),SeznamPredavanj[EDINSTVENO],0),2),0)","v":0},{"$f":"IFERROR(INDEX(SeznamPredavanj[],MATCH(SUMPRODUCT((SeznamPredavanj[DAN]=UrnikPredavanj[[#Headers],[SOBOTA]])*(ROUNDDOWN($B28,10)>=ROUNDDOWN(SeznamPredavanj[ČAS ZAČETKA],10))*($B28<=SeznamPredavanj[ČAS KONCA]),SeznamPredavanj[EDINSTVENO]),SeznamPredavanj[EDINSTVENO],0),2),0)","v":0}]
[null,"14:15:00",{"$f":"IFERROR(INDEX(SeznamPredavanj[],MATCH(SUMPRODUCT((SeznamPredavanj[DAN]=UrnikPredavanj[[#Headers],[NEDELJA]])*(ROUNDDOWN($B29,10)>=ROUNDDOWN(SeznamPredavanj[ČAS ZAČETKA],10))*($B29<=SeznamPredavanj[ČAS KONCA]),SeznamPredavanj[EDINSTVENO]),SeznamPredavanj[EDINSTVENO],0),2),0)","v":0},{"$f":"IFERROR(INDEX(SeznamPredavanj[],MATCH(SUMPRODUCT((SeznamPredavanj[DAN]=UrnikPredavanj[[#Headers],[PONEDELJEK]])*(ROUNDDOWN($B29,10)>=ROUNDDOWN(SeznamPredavanj[ČAS ZAČETKA],10))*($B29<=SeznamPredavanj[ČAS KONCA]),SeznamPredavanj[EDINSTVENO]),SeznamPredavanj[EDINSTVENO],0),2),0)","v":0},{"$f":"IFERROR(INDEX(SeznamPredavanj[],MATCH(SUMPRODUCT((SeznamPredavanj[DAN]=UrnikPredavanj[[#Headers],[TOREK]])*(ROUNDDOWN($B29,10)>=ROUNDDOWN(SeznamPredavanj[ČAS ZAČETKA],10))*($B29<=SeznamPredavanj[ČAS KONCA]),SeznamPredavanj[EDINSTVENO]),SeznamPredavanj[EDINSTVENO],0),2),0)","v":0},{"$f":"IFERROR(INDEX(SeznamPredavanj[],MATCH(SUMPRODUCT((SeznamPredavanj[DAN]=UrnikPredavanj[[#Headers],[SREDA]])*(ROUNDDOWN($B29,10)>=ROUNDDOWN(SeznamPredavanj[ČAS ZAČETKA],10))*($B29<=SeznamPredavanj[ČAS KONCA]),SeznamPredavanj[EDINSTVENO]),SeznamPredavanj[EDINSTVENO],0),2),0)","v":0},{"$f":"IFERROR(INDEX(SeznamPredavanj[],MATCH(SUMPRODUCT((SeznamPredavanj[DAN]=UrnikPredavanj[[#Headers],[ČETRTEK]])*(ROUNDDOWN($B29,10)>=ROUNDDOWN(SeznamPredavanj[ČAS ZAČETKA],10))*($B29<=SeznamPredavanj[ČAS KONCA]),SeznamPredavanj[EDINSTVENO]),SeznamPredavanj[EDINSTVENO],0),2),0)","v":0},{"$f":"IFERROR(INDEX(SeznamPredavanj[],MATCH(SUMPRODUCT((SeznamPredavanj[DAN]=UrnikPredavanj[[#Headers],[PETEK]])*(ROUNDDOWN($B29,10)>=ROUNDDOWN(SeznamPredavanj[ČAS ZAČETKA],10))*($B29<=SeznamPredavanj[ČAS KONCA]),SeznamPredavanj[EDINSTVENO]),SeznamPredavanj[EDINSTVENO],0),2),0)","v":0},{"$f":"IFERROR(INDEX(SeznamPredavanj[],MATCH(SUMPRODUCT((SeznamPredavanj[DAN]=UrnikPredavanj[[#Headers],[SOBOTA]])*(ROUNDDOWN($B29,10)>=ROUNDDOWN(SeznamPredavanj[ČAS ZAČETKA],10))*($B29<=SeznamPredavanj[ČAS KONCA]),SeznamPredavanj[EDINSTVENO]),SeznamPredavanj[EDINSTVENO],0),2),0)","v":0}]
[null,"14:30:00",{"$f":"IFERROR(INDEX(SeznamPredavanj[],MATCH(SUMPRODUCT((SeznamPredavanj[DAN]=UrnikPredavanj[[#Headers],[NEDELJA]])*(ROUNDDOWN($B30,10)>=ROUNDDOWN(SeznamPredavanj[ČAS ZAČETKA],10))*($B30<=SeznamPredavanj[ČAS KONCA]),SeznamPredavanj[EDINSTVENO]),SeznamPredavanj[EDINSTVENO],0),2),0)","v":0},{"$f":"IFERROR(INDEX(SeznamPredavanj[],MATCH(SUMPRODUCT((SeznamPredavanj[DAN]=UrnikPredavanj[[#Headers],[PONEDELJEK]])*(ROUNDDOWN($B30,10)>=ROUNDDOWN(SeznamPredavanj[ČAS ZAČETKA],10))*($B30<=SeznamPredavanj[ČAS KONCA]),SeznamPredavanj[EDINSTVENO]),SeznamPredavanj[EDINSTVENO],0),2),0)","v":0},{"$f":"IFERROR(INDEX(SeznamPredavanj[],MATCH(SUMPRODUCT((SeznamPredavanj[DAN]=UrnikPredavanj[[#Headers],[TOREK]])*(ROUNDDOWN($B30,10)>=ROUNDDOWN(SeznamPredavanj[ČAS ZAČETKA],10))*($B30<=SeznamPredavanj[ČAS KONCA]),SeznamPredavanj[EDINSTVENO]),SeznamPredavanj[EDINSTVENO],0),2),0)","v":0},{"$f":"IFERROR(INDEX(SeznamPredavanj[],MATCH(SUMPRODUCT((SeznamPredavanj[DAN]=UrnikPredavanj[[#Headers],[SREDA]])*(ROUNDDOWN($B30,10)>=ROUNDDOWN(SeznamPredavanj[ČAS ZAČETKA],10))*($B30<=SeznamPredavanj[ČAS KONCA]),SeznamPredavanj[EDINSTVENO]),SeznamPredavanj[EDINSTVENO],0),2),0)","v":0},{"$f":"IFERROR(INDEX(SeznamPredavanj[],MATCH(SUMPRODUCT((SeznamPredavanj[DAN]=UrnikPredavanj[[#Headers],[ČETRTEK]])*(ROUNDDOWN($B30,10)>=ROUNDDOWN(SeznamPredavanj[ČAS ZAČETKA],10))*($B30<=SeznamPredavanj[ČAS KONCA]),SeznamPredavanj[EDINSTVENO]),SeznamPredavanj[EDINSTVENO],0),2),0)","v":0},{"$f":"IFERROR(INDEX(SeznamPredavanj[],MATCH(SUMPRODUCT((SeznamPredavanj[DAN]=UrnikPredavanj[[#Headers],[PETEK]])*(ROUNDDOWN($B30,10)>=ROUNDDOWN(SeznamPredavanj[ČAS ZAČETKA],10))*($B30<=SeznamPredavanj[ČAS KONCA]),SeznamPredavanj[EDINSTVENO]),SeznamPredavanj[EDINSTVENO],0),2),0)","v":0},{"$f":"IFERROR(INDEX(SeznamPredavanj[],MATCH(SUMPRODUCT((SeznamPredavanj[DAN]=UrnikPredavanj[[#Headers],[SOBOTA]])*(ROUNDDOWN($B30,10)>=ROUNDDOWN(SeznamPredavanj[ČAS ZAČETKA],10))*($B30<=SeznamPredavanj[ČAS KONCA]),SeznamPredavanj[EDINSTVENO]),SeznamPredavanj[EDINSTVENO],0),2),0)","v":0}]
[null,"14:45:00",{"$f":"IFERROR(INDEX(SeznamPredavanj[],MATCH(SUMPRODUCT((SeznamPredavanj[DAN]=UrnikPredavanj[[#Headers],[NEDELJA]])*(ROUNDDOWN($B31,10)>=ROUNDDOWN(SeznamPredavanj[ČAS ZAČETKA],10))*($B31<=SeznamPredavanj[ČAS KONCA]),SeznamPredavanj[EDINSTVENO]),SeznamPredavanj[EDINSTVENO],0),2),0)","v":0},{"$f":"IFERROR(INDEX(SeznamPredavanj[],MATCH(SUMPRODUCT((SeznamPredavanj[DAN]=UrnikPredavanj[[#Headers],[PONEDELJEK]])*(ROUNDDOWN($B31,10)>=ROUNDDOWN(SeznamPredavanj[ČAS ZAČETKA],10))*($B31<=SeznamPredavanj[ČAS KONCA]),SeznamPredavanj[EDINSTVENO]),SeznamPredavanj[EDINSTVENO],0),2),0)","v":0},{"$f":"IFERROR(INDEX(SeznamPredavanj[],MATCH(SUMPRODUCT((SeznamPredavanj[DAN]=UrnikPredavanj[[#Headers],[TOREK]])*(ROUNDDOWN($B31,10)>=ROUNDDOWN(SeznamPredavanj[ČAS ZAČETKA],10))*($B31<=SeznamPredavanj[ČAS KONCA]),SeznamPredavanj[EDINSTVENO]),SeznamPredavanj[EDINSTVENO],0),2),0)","v":0},{"$f":"IFERROR(INDEX(SeznamPredavanj[],MATCH(SUMPRODUCT((SeznamPredavanj[DAN]=UrnikPredavanj[[#Headers],[SREDA]])*(ROUNDDOWN($B31,10)>=ROUNDDOWN(SeznamPredavanj[ČAS ZAČETKA],10))*($B31<=SeznamPredavanj[ČAS KONCA]),SeznamPredavanj[EDINSTVENO]),SeznamPredavanj[EDINSTVENO],0),2),0)","v":0},{"$f":"IFERROR(INDEX(SeznamPredavanj[],MATCH(SUMPRODUCT((SeznamPredavanj[DAN]=UrnikPredavanj[[#Headers],[ČETRTEK]])*(ROUNDDOWN($B31,10)>=ROUNDDOWN(SeznamPredavanj[ČAS ZAČETKA],10))*($B31<=SeznamPredavanj[ČAS KONCA]),SeznamPredavanj[EDINSTVENO]),SeznamPredavanj[EDINSTVENO],0),2),0)","v":0},{"$f":"IFERROR(INDEX(SeznamPredavanj[],MATCH(SUMPRODUCT((SeznamPredavanj[DAN]=UrnikPredavanj[[#Headers],[PETEK]])*(ROUNDDOWN($B31,10)>=ROUNDDOWN(SeznamPredavanj[ČAS ZAČETKA],10))*($B31<=SeznamPredavanj[ČAS KONCA]),SeznamPredavanj[EDINSTVENO]),SeznamPredavanj[EDINSTVENO],0),2),0)","v":0},{"$f":"IFERROR(INDEX(SeznamPredavanj[],MATCH(SUMPRODUCT((SeznamPredavanj[DAN]=UrnikPredavanj[[#Headers],[SOBOTA]])*(ROUNDDOWN($B31,10)>=ROUNDDOWN(SeznamPredavanj[ČAS ZAČETKA],10))*($B31<=SeznamPredavanj[ČAS KONCA]),SeznamPredavanj[EDINSTVENO]),SeznamPredavanj[EDINSTVENO],0),2),0)","v":0}]
[null,"15:00:00",{"$f":"IFERROR(INDEX(SeznamPredavanj[],MATCH(SUMPRODUCT((SeznamPredavanj[DAN]=UrnikPredavanj[[#Headers],[NEDELJA]])*(ROUNDDOWN($B32,10)>=ROUNDDOWN(SeznamPredavanj[ČAS ZAČETKA],10))*($B32<=SeznamPredavanj[ČAS KONCA]),SeznamPredavanj[EDINSTVENO]),SeznamPredavanj[EDINSTVENO],0),2),0)","v":0},{"$f":"IFERROR(INDEX(SeznamPredavanj[],MATCH(SUMPRODUCT((SeznamPredavanj[DAN]=UrnikPredavanj[[#Headers],[PONEDELJEK]])*(ROUNDDOWN($B32,10)>=ROUNDDOWN(SeznamPredavanj[ČAS ZAČETKA],10))*($B32<=SeznamPredavanj[ČAS KONCA]),SeznamPredavanj[EDINSTVENO]),SeznamPredavanj[EDINSTVENO],0),2),0)","v":0},{"$f":"IFERROR(INDEX(SeznamPredavanj[],MATCH(SUMPRODUCT((SeznamPredavanj[DAN]=UrnikPredavanj[[#Headers],[TOREK]])*(ROUNDDOWN($B32,10)>=ROUNDDOWN(SeznamPredavanj[ČAS ZAČETKA],10))*($B32<=SeznamPredavanj[ČAS KONCA]),SeznamPredavanj[EDINSTVENO]),SeznamPredavanj[EDINSTVENO],0),2),0)","v":0},{"$f":"IFERROR(INDEX(SeznamPredavanj[],MATCH(SUMPRODUCT((SeznamPredavanj[DAN]=UrnikPredavanj[[#Headers],[SREDA]])*(ROUNDDOWN($B32,10)>=ROUNDDOWN(SeznamPredavanj[ČAS ZAČETKA],10))*($B32<=SeznamPredavanj[ČAS KONCA]),SeznamPredavanj[EDINSTVENO]),SeznamPredavanj[EDINSTVENO],0),2),0)","v":0},{"$f":"IFERROR(INDEX(SeznamPredavanj[],MATCH(SUMPRODUCT((SeznamPredavanj[DAN]=UrnikPredavanj[[#Headers],[ČETRTEK]])*(ROUNDDOWN($B32,10)>=ROUNDDOWN(SeznamPredavanj[ČAS ZAČETKA],10))*($B32<=SeznamPredavanj[ČAS KONCA]),SeznamPredavanj[EDINSTVENO]),SeznamPredavanj[EDINSTVENO],0),2),0)","v":0},{"$f":"IFERROR(INDEX(SeznamPredavanj[],MATCH(SUMPRODUCT((SeznamPredavanj[DAN]=UrnikPredavanj[[#Headers],[PETEK]])*(ROUNDDOWN($B32,10)>=ROUNDDOWN(SeznamPredavanj[ČAS ZAČETKA],10))*($B32<=SeznamPredavanj[ČAS KONCA]),SeznamPredavanj[EDINSTVENO]),SeznamPredavanj[EDINSTVENO],0),2),0)","v":0},{"$f":"IFERROR(INDEX(SeznamPredavanj[],MATCH(SUMPRODUCT((SeznamPredavanj[DAN]=UrnikPredavanj[[#Headers],[SOBOTA]])*(ROUNDDOWN($B32,10)>=ROUNDDOWN(SeznamPredavanj[ČAS ZAČETKA],10))*($B32<=SeznamPredavanj[ČAS KONCA]),SeznamPredavanj[EDINSTVENO]),SeznamPredavanj[EDINSTVENO],0),2),0)","v":0}]
[null,"15:15:00",{"$f":"IFERROR(INDEX(SeznamPredavanj[],MATCH(SUMPRODUCT((SeznamPredavanj[DAN]=UrnikPredavanj[[#Headers],[NEDELJA]])*(ROUNDDOWN($B33,10)>=ROUNDDOWN(SeznamPredavanj[ČAS ZAČETKA],10))*($B33<=SeznamPredavanj[ČAS KONCA]),SeznamPredavanj[EDINSTVENO]),SeznamPredavanj[EDINSTVENO],0),2),0)","v":0},{"$f":"IFERROR(INDEX(SeznamPredavanj[],MATCH(SUMPRODUCT((SeznamPredavanj[DAN]=UrnikPredavanj[[#Headers],[PONEDELJEK]])*(ROUNDDOWN($B33,10)>=ROUNDDOWN(SeznamPredavanj[ČAS ZAČETKA],10))*($B33<=SeznamPredavanj[ČAS KONCA]),SeznamPredavanj[EDINSTVENO]),SeznamPredavanj[EDINSTVENO],0),2),0)","v":0},{"$f":"IFERROR(INDEX(SeznamPredavanj[],MATCH(SUMPRODUCT((SeznamPredavanj[DAN]=UrnikPredavanj[[#Headers],[TOREK]])*(ROUNDDOWN($B33,10)>=ROUNDDOWN(SeznamPredavanj[ČAS ZAČETKA],10))*($B33<=SeznamPredavanj[ČAS KONCA]),SeznamPredavanj[EDINSTVENO]),SeznamPredavanj[EDINSTVENO],0),2),0)","v":0},{"$f":"IFERROR(INDEX(SeznamPredavanj[],MATCH(SUMPRODUCT((SeznamPredavanj[DAN]=UrnikPredavanj[[#Headers],[SREDA]])*(ROUNDDOWN($B33,10)>=ROUNDDOWN(SeznamPredavanj[ČAS ZAČETKA],10))*($B33<=SeznamPredavanj[ČAS KONCA]),SeznamPredavanj[EDINSTVENO]),SeznamPredavanj[EDINSTVENO],0),2),0)","v":0},{"$f":"IFERROR(INDEX(SeznamPredavanj[],MATCH(SUMPRODUCT((SeznamPredavanj[DAN]=UrnikPredavanj[[#Headers],[ČETRTEK]])*(ROUNDDOWN($B33,10)>=ROUNDDOWN(SeznamPredavanj[ČAS ZAČETKA],10))*($B33<=SeznamPredavanj[ČAS KONCA]),SeznamPredavanj[EDINSTVENO]),SeznamPredavanj[EDINSTVENO],0),2),0)","v":0},{"$f":"IFERROR(INDEX(SeznamPredavanj[],MATCH(SUMPRODUCT((SeznamPredavanj[DAN]=UrnikPredavanj[[#Headers],[PETEK]])*(ROUNDDOWN($B33,10)>=ROUNDDOWN(SeznamPredavanj[ČAS ZAČETKA],10))*($B33<=SeznamPredavanj[ČAS KONCA]),SeznamPredavanj[EDINSTVENO]),SeznamPredavanj[EDINSTVENO],0),2),0)","v":0},{"$f":"IFERROR(INDEX(SeznamPredavanj[],MATCH(SUMPRODUCT((SeznamPredavanj[DAN]=UrnikPredavanj[[#Headers],[SOBOTA]])*(ROUNDDOWN($B33,10)>=ROUNDDOWN(SeznamPredavanj[ČAS ZAČETKA],10))*($B33<=SeznamPredavanj[ČAS KONCA]),SeznamPredavanj[EDINSTVENO]),SeznamPredavanj[EDINSTVENO],0),2),0)","v":0}]
[null,"15:30:00",{"$f":"IFERROR(INDEX(SeznamPredavanj[],MATCH(SUMPRODUCT((SeznamPredavanj[DAN]=UrnikPredavanj[[#Headers],[NEDELJA]])*(ROUNDDOWN($B34,10)>=ROUNDDOWN(SeznamPredavanj[ČAS ZAČETKA],10))*($B34<=SeznamPredavanj[ČAS KONCA]),SeznamPredavanj[EDINSTVENO]),SeznamPredavanj[EDINSTVENO],0),2),0)","v":0},{"$f":"IFERROR(INDEX(SeznamPredavanj[],MATCH(SUMPRODUCT((SeznamPredavanj[DAN]=UrnikPredavanj[[#Headers],[PONEDELJEK]])*(ROUNDDOWN($B34,10)>=ROUNDDOWN(SeznamPredavanj[ČAS ZAČETKA],10))*($B34<=SeznamPredavanj[ČAS KONCA]),SeznamPredavanj[EDINSTVENO]),SeznamPredavanj[EDINSTVENO],0),2),0)","v":0},{"$f":"IFERROR(INDEX(SeznamPredavanj[],MATCH(SUMPRODUCT((SeznamPredavanj[DAN]=UrnikPredavanj[[#Headers],[TOREK]])*(ROUNDDOWN($B34,10)>=ROUNDDOWN(SeznamPredavanj[ČAS ZAČETKA],10))*($B34<=SeznamPredavanj[ČAS KONCA]),SeznamPredavanj[EDINSTVENO]),SeznamPredavanj[EDINSTVENO],0),2),0)","v":0},{"$f":"IFERROR(INDEX(SeznamPredavanj[],MATCH(SUMPRODUCT((SeznamPredavanj[DAN]=UrnikPredavanj[[#Headers],[SREDA]])*(ROUNDDOWN($B34,10)>=ROUNDDOWN(SeznamPredavanj[ČAS ZAČETKA],10))*($B34<=SeznamPredavanj[ČAS KONCA]),SeznamPredavanj[EDINSTVENO]),SeznamPredavanj[EDINSTVENO],0),2),0)","v":0},{"$f":"IFERROR(INDEX(SeznamPredavanj[],MATCH(SUMPRODUCT((SeznamPredavanj[DAN]=UrnikPredavanj[[#Headers],[ČETRTEK]])*(ROUNDDOWN($B34,10)>=ROUNDDOWN(SeznamPredavanj[ČAS ZAČETKA],10))*($B34<=SeznamPredavanj[ČAS KONCA]),SeznamPredavanj[EDINSTVENO]),SeznamPredavanj[EDINSTVENO],0),2),0)","v":0},{"$f":"IFERROR(INDEX(SeznamPredavanj[],MATCH(SUMPRODUCT((SeznamPredavanj[DAN]=UrnikPredavanj[[#Headers],[PETEK]])*(ROUNDDOWN($B34,10)>=ROUNDDOWN(SeznamPredavanj[ČAS ZAČETKA],10))*($B34<=SeznamPredavanj[ČAS KONCA]),SeznamPredavanj[EDINSTVENO]),SeznamPredavanj[EDINSTVENO],0),2),0)","v":0},{"$f":"IFERROR(INDEX(SeznamPredavanj[],MATCH(SUMPRODUCT((SeznamPredavanj[DAN]=UrnikPredavanj[[#Headers],[SOBOTA]])*(ROUNDDOWN($B34,10)>=ROUNDDOWN(SeznamPredavanj[ČAS ZAČETKA],10))*($B34<=SeznamPredavanj[ČAS KONCA]),SeznamPredavanj[EDINSTVENO]),SeznamPredavanj[EDINSTVENO],0),2),0)","v":0}]
[null,"15:45:00",{"$f":"IFERROR(INDEX(SeznamPredavanj[],MATCH(SUMPRODUCT((SeznamPredavanj[DAN]=UrnikPredavanj[[#Headers],[NEDELJA]])*(ROUNDDOWN($B35,10)>=ROUNDDOWN(SeznamPredavanj[ČAS ZAČETKA],10))*($B35<=SeznamPredavanj[ČAS KONCA]),SeznamPredavanj[EDINSTVENO]),SeznamPredavanj[EDINSTVENO],0),2),0)","v":0},{"$f":"IFERROR(INDEX(SeznamPredavanj[],MATCH(SUMPRODUCT((SeznamPredavanj[DAN]=UrnikPredavanj[[#Headers],[PONEDELJEK]])*(ROUNDDOWN($B35,10)>=ROUNDDOWN(SeznamPredavanj[ČAS ZAČETKA],10))*($B35<=SeznamPredavanj[ČAS KONCA]),SeznamPredavanj[EDINSTVENO]),SeznamPredavanj[EDINSTVENO],0),2),0)","v":0},{"$f":"IFERROR(INDEX(SeznamPredavanj[],MATCH(SUMPRODUCT((SeznamPredavanj[DAN]=UrnikPredavanj[[#Headers],[TOREK]])*(ROUNDDOWN($B35,10)>=ROUNDDOWN(SeznamPredavanj[ČAS ZAČETKA],10))*($B35<=SeznamPredavanj[ČAS KONCA]),SeznamPredavanj[EDINSTVENO]),SeznamPredavanj[EDINSTVENO],0),2),0)","v":0},{"$f":"IFERROR(INDEX(SeznamPredavanj[],MATCH(SUMPRODUCT((SeznamPredavanj[DAN]=UrnikPredavanj[[#Headers],[SREDA]])*(ROUNDDOWN($B35,10)>=ROUNDDOWN(SeznamPredavanj[ČAS ZAČETKA],10))*($B35<=SeznamPredavanj[ČAS KONCA]),SeznamPredavanj[EDINSTVENO]),SeznamPredavanj[EDINSTVENO],0),2),0)","v":0},{"$f":"IFERROR(INDEX(SeznamPredavanj[],MATCH(SUMPRODUCT((SeznamPredavanj[DAN]=UrnikPredavanj[[#Headers],[ČETRTEK]])*(ROUNDDOWN($B35,10)>=ROUNDDOWN(SeznamPredavanj[ČAS ZAČETKA],10))*($B35<=SeznamPredavanj[ČAS KONCA]),SeznamPredavanj[EDINSTVENO]),SeznamPredavanj[EDINSTVENO],0),2),0)","v":0},{"$f":"IFERROR(INDEX(SeznamPredavanj[],MATCH(SUMPRODUCT((SeznamPredavanj[DAN]=UrnikPredavanj[[#Headers],[PETEK]])*(ROUNDDOWN($B35,10)>=ROUNDDOWN(SeznamPredavanj[ČAS ZAČETKA],10))*($B35<=SeznamPredavanj[ČAS KONCA]),SeznamPredavanj[EDINSTVENO]),SeznamPredavanj[EDINSTVENO],0),2),0)","v":0},{"$f":"IFERROR(INDEX(SeznamPredavanj[],MATCH(SUMPRODUCT((SeznamPredavanj[DAN]=UrnikPredavanj[[#Headers],[SOBOTA]])*(ROUNDDOWN($B35,10)>=ROUNDDOWN(SeznamPredavanj[ČAS ZAČETKA],10))*($B35<=SeznamPredavanj[ČAS KONCA]),SeznamPredavanj[EDINSTVENO]),SeznamPredavanj[EDINSTVENO],0),2),0)","v":0}]
[null,"16:00:00",{"$f":"IFERROR(INDEX(SeznamPredavanj[],MATCH(SUMPRODUCT((SeznamPredavanj[DAN]=UrnikPredavanj[[#Headers],[NEDELJA]])*(ROUNDDOWN($B36,10)>=ROUNDDOWN(SeznamPredavanj[ČAS ZAČETKA],10))*($B36<=SeznamPredavanj[ČAS KONCA]),SeznamPredavanj[EDINSTVENO]),SeznamPredavanj[EDINSTVENO],0),2),0)","v":0},{"$f":"IFERROR(INDEX(SeznamPredavanj[],MATCH(SUMPRODUCT((SeznamPredavanj[DAN]=UrnikPredavanj[[#Headers],[PONEDELJEK]])*(ROUNDDOWN($B36,10)>=ROUNDDOWN(SeznamPredavanj[ČAS ZAČETKA],10))*($B36<=SeznamPredavanj[ČAS KONCA]),SeznamPredavanj[EDINSTVENO]),SeznamPredavanj[EDINSTVENO],0),2),0)","v":"SP-111"},{"$f":"IFERROR(INDEX(SeznamPredavanj[],MATCH(SUMPRODUCT((SeznamPredavanj[DAN]=UrnikPredavanj[[#Headers],[TOREK]])*(ROUNDDOWN($B36,10)>=ROUNDDOWN(SeznamPredavanj[ČAS ZAČETKA],10))*($B36<=SeznamPredavanj[ČAS KONCA]),SeznamPredavanj[EDINSTVENO]),SeznamPredavanj[EDINSTVENO],0),2),0)","v":0},{"$f":"IFERROR(INDEX(SeznamPredavanj[],MATCH(SUMPRODUCT((SeznamPredavanj[DAN]=UrnikPredavanj[[#Headers],[SREDA]])*(ROUNDDOWN($B36,10)>=ROUNDDOWN(SeznamPredavanj[ČAS ZAČETKA],10))*($B36<=SeznamPredavanj[ČAS KONCA]),SeznamPredavanj[EDINSTVENO]),SeznamPredavanj[EDINSTVENO],0),2),0)","v":0},{"$f":"IFERROR(INDEX(SeznamPredavanj[],MATCH(SUMPRODUCT((SeznamPredavanj[DAN]=UrnikPredavanj[[#Headers],[ČETRTEK]])*(ROUNDDOWN($B36,10)>=ROUNDDOWN(SeznamPredavanj[ČAS ZAČETKA],10))*($B36<=SeznamPredavanj[ČAS KONCA]),SeznamPredavanj[EDINSTVENO]),SeznamPredavanj[EDINSTVENO],0),2),0)","v":0},{"$f":"IFERROR(INDEX(SeznamPredavanj[],MATCH(SUMPRODUCT((SeznamPredavanj[DAN]=UrnikPredavanj[[#Headers],[PETEK]])*(ROUNDDOWN($B36,10)>=ROUNDDOWN(SeznamPredavanj[ČAS ZAČETKA],10))*($B36<=SeznamPredavanj[ČAS KONCA]),SeznamPredavanj[EDINSTVENO]),SeznamPredavanj[EDINSTVENO],0),2),0)","v":0},{"$f":"IFERROR(INDEX(SeznamPredavanj[],MATCH(SUMPRODUCT((SeznamPredavanj[DAN]=UrnikPredavanj[[#Headers],[SOBOTA]])*(ROUNDDOWN($B36,10)>=ROUNDDOWN(SeznamPredavanj[ČAS ZAČETKA],10))*($B36<=SeznamPredavanj[ČAS KONCA]),SeznamPredavanj[EDINSTVENO]),SeznamPredavanj[EDINSTVENO],0),2),0)","v":0}]
[null,{"$f":"B36+Prirastek","v":"16:15:00"},{"$f":"IFERROR(INDEX(SeznamPredavanj[],MATCH(SUMPRODUCT((SeznamPredavanj[DAN]=UrnikPredavanj[[#Headers],[NEDELJA]])*(ROUNDDOWN($B37,10)>=ROUNDDOWN(SeznamPredavanj[ČAS ZAČETKA],10))*($B37<=SeznamPredavanj[ČAS KONCA]),SeznamPredavanj[EDINSTVENO]),SeznamPredavanj[EDINSTVENO],0),2),0)","v":0},{"$f":"IFERROR(INDEX(SeznamPredavanj[],MATCH(SUMPRODUCT((SeznamPredavanj[DAN]=UrnikPredavanj[[#Headers],[PONEDELJEK]])*(ROUNDDOWN($B37,10)>=ROUNDDOWN(SeznamPredavanj[ČAS ZAČETKA],10))*($B37<=SeznamPredavanj[ČAS KONCA]),SeznamPredavanj[EDINSTVENO]),SeznamPredavanj[EDINSTVENO],0),2),0)","v":"SP-111"},{"$f":"IFERROR(INDEX(SeznamPredavanj[],MATCH(SUMPRODUCT((SeznamPredavanj[DAN]=UrnikPredavanj[[#Headers],[TOREK]])*(ROUNDDOWN($B37,10)>=ROUNDDOWN(SeznamPredavanj[ČAS ZAČETKA],10))*($B37<=SeznamPredavanj[ČAS KONCA]),SeznamPredavanj[EDINSTVENO]),SeznamPredavanj[EDINSTVENO],0),2),0)","v":0},{"$f":"IFERROR(INDEX(SeznamPredavanj[],MATCH(SUMPRODUCT((SeznamPredavanj[DAN]=UrnikPredavanj[[#Headers],[SREDA]])*(ROUNDDOWN($B37,10)>=ROUNDDOWN(SeznamPredavanj[ČAS ZAČETKA],10))*($B37<=SeznamPredavanj[ČAS KONCA]),SeznamPredavanj[EDINSTVENO]),SeznamPredavanj[EDINSTVENO],0),2),0)","v":0},{"$f":"IFERROR(INDEX(SeznamPredavanj[],MATCH(SUMPRODUCT((SeznamPredavanj[DAN]=UrnikPredavanj[[#Headers],[ČETRTEK]])*(ROUNDDOWN($B37,10)>=ROUNDDOWN(SeznamPredavanj[ČAS ZAČETKA],10))*($B37<=SeznamPredavanj[ČAS KONCA]),SeznamPredavanj[EDINSTVENO]),SeznamPredavanj[EDINSTVENO],0),2),0)","v":0},{"$f":"IFERROR(INDEX(SeznamPredavanj[],MATCH(SUMPRODUCT((SeznamPredavanj[DAN]=UrnikPredavanj[[#Headers],[PETEK]])*(ROUNDDOWN($B37,10)>=ROUNDDOWN(SeznamPredavanj[ČAS ZAČETKA],10))*($B37<=SeznamPredavanj[ČAS KONCA]),SeznamPredavanj[EDINSTVENO]),SeznamPredavanj[EDINSTVENO],0),2),0)","v":0},{"$f":"IFERROR(INDEX(SeznamPredavanj[],MATCH(SUMPRODUCT((SeznamPredavanj[DAN]=UrnikPredavanj[[#Headers],[SOBOTA]])*(ROUNDDOWN($B37,10)>=ROUNDDOWN(SeznamPredavanj[ČAS ZAČETKA],10))*($B37<=SeznamPredavanj[ČAS KONCA]),SeznamPredavanj[EDINSTVENO]),SeznamPredavanj[EDINSTVENO],0),2),0)","v":0}]
[null,"16:30:00",{"$f":"IFERROR(INDEX(SeznamPredavanj[],MATCH(SUMPRODUCT((SeznamPredavanj[DAN]=UrnikPredavanj[[#Headers],[NEDELJA]])*(ROUNDDOWN($B38,10)>=ROUNDDOWN(SeznamPredavanj[ČAS ZAČETKA],10))*($B38<=SeznamPredavanj[ČAS KONCA]),SeznamPredavanj[EDINSTVENO]),SeznamPredavanj[EDINSTVENO],0),2),0)","v":0},{"$f":"IFERROR(INDEX(SeznamPredavanj[],MATCH(SUMPRODUCT((SeznamPredavanj[DAN]=UrnikPredavanj[[#Headers],[PONEDELJEK]])*(ROUNDDOWN($B38,10)>=ROUNDDOWN(SeznamPredavanj[ČAS ZAČETKA],10))*($B38<=SeznamPredavanj[ČAS KONCA]),SeznamPredavanj[EDINSTVENO]),SeznamPredavanj[EDINSTVENO],0),2),0)","v":"SP-111"},{"$f":"IFERROR(INDEX(SeznamPredavanj[],MATCH(SUMPRODUCT((SeznamPredavanj[DAN]=UrnikPredavanj[[#Headers],[TOREK]])*(ROUNDDOWN($B38,10)>=ROUNDDOWN(SeznamPredavanj[ČAS ZAČETKA],10))*($B38<=SeznamPredavanj[ČAS KONCA]),SeznamPredavanj[EDINSTVENO]),SeznamPredavanj[EDINSTVENO],0),2),0)","v":0},{"$f":"IFERROR(INDEX(SeznamPredavanj[],MATCH(SUMPRODUCT((SeznamPredavanj[DAN]=UrnikPredavanj[[#Headers],[SREDA]])*(ROUNDDOWN($B38,10)>=ROUNDDOWN(SeznamPredavanj[ČAS ZAČETKA],10))*($B38<=SeznamPredavanj[ČAS KONCA]),SeznamPredavanj[EDINSTVENO]),SeznamPredavanj[EDINSTVENO],0),2),0)","v":0},{"$f":"IFERROR(INDEX(SeznamPredavanj[],MATCH(SUMPRODUCT((SeznamPredavanj[DAN]=UrnikPredavanj[[#Headers],[ČETRTEK]])*(ROUNDDOWN($B38,10)>=ROUNDDOWN(SeznamPredavanj[ČAS ZAČETKA],10))*($B38<=SeznamPredavanj[ČAS KONCA]),SeznamPredavanj[EDINSTVENO]),SeznamPredavanj[EDINSTVENO],0),2),0)","v":0},{"$f":"IFERROR(INDEX(SeznamPredavanj[],MATCH(SUMPRODUCT((SeznamPredavanj[DAN]=UrnikPredavanj[[#Headers],[PETEK]])*(ROUNDDOWN($B38,10)>=ROUNDDOWN(SeznamPredavanj[ČAS ZAČETKA],10))*($B38<=SeznamPredavanj[ČAS KONCA]),SeznamPredavanj[EDINSTVENO]),SeznamPredavanj[EDINSTVENO],0),2),0)","v":0},{"$f":"IFERROR(INDEX(SeznamPredavanj[],MATCH(SUMPRODUCT((SeznamPredavanj[DAN]=UrnikPredavanj[[#Headers],[SOBOTA]])*(ROUNDDOWN($B38,10)>=ROUNDDOWN(SeznamPredavanj[ČAS ZAČETKA],10))*($B38<=SeznamPredavanj[ČAS KONCA]),SeznamPredavanj[EDINSTVENO]),SeznamPredavanj[EDINSTVENO],0),2),0)","v":0}]
[null,"16:45:00",{"$f":"IFERROR(INDEX(SeznamPredavanj[],MATCH(SUMPRODUCT((SeznamPredavanj[DAN]=UrnikPredavanj[[#Headers],[NEDELJA]])*(ROUNDDOWN($B39,10)>=ROUNDDOWN(SeznamPredavanj[ČAS ZAČETKA],10))*($B39<=SeznamPredavanj[ČAS KONCA]),SeznamPredavanj[EDINSTVENO]),SeznamPredavanj[EDINSTVENO],0),2),0)","v":0},{"$f":"IFERROR(INDEX(SeznamPredavanj[],MATCH(SUMPRODUCT((SeznamPredavanj[DAN]=UrnikPredavanj[[#Headers],[PONEDELJEK]])*(ROUNDDOWN($B39,10)>=ROUNDDOWN(SeznamPredavanj[ČAS ZAČETKA],10))*($B39<=SeznamPredavanj[ČAS KONCA]),SeznamPredavanj[EDINSTVENO]),SeznamPredavanj[EDINSTVENO],0),2),0)","v":"SP-111"},{"$f":"IFERROR(INDEX(SeznamPredavanj[],MATCH(SUMPRODUCT((SeznamPredavanj[DAN]=UrnikPredavanj[[#Headers],[TOREK]])*(ROUNDDOWN($B39,10)>=ROUNDDOWN(SeznamPredavanj[ČAS ZAČETKA],10))*($B39<=SeznamPredavanj[ČAS KONCA]),SeznamPredavanj[EDINSTVENO]),SeznamPredavanj[EDINSTVENO],0),2),0)","v":0},{"$f":"IFERROR(INDEX(SeznamPredavanj[],MATCH(SUMPRODUCT((SeznamPredavanj[DAN]=UrnikPredavanj[[#Headers],[SREDA]])*(ROUNDDOWN($B39,10)>=ROUNDDOWN(SeznamPredavanj[ČAS ZAČETKA],10))*($B39<=SeznamPredavanj[ČAS KONCA]),SeznamPredavanj[EDINSTVENO]),SeznamPredavanj[EDINSTVENO],0),2),0)","v":0},{"$f":"IFERROR(INDEX(SeznamPredavanj[],MATCH(SUMPRODUCT((SeznamPredavanj[DAN]=UrnikPredavanj[[#Headers],[ČETRTEK]])*(ROUNDDOWN($B39,10)>=ROUNDDOWN(SeznamPredavanj[ČAS ZAČETKA],10))*($B39<=SeznamPredavanj[ČAS KONCA]),SeznamPredavanj[EDINSTVENO]),SeznamPredavanj[EDINSTVENO],0),2),0)","v":0},{"$f":"IFERROR(INDEX(SeznamPredavanj[],MATCH(SUMPRODUCT((SeznamPredavanj[DAN]=UrnikPredavanj[[#Headers],[PETEK]])*(ROUNDDOWN($B39,10)>=ROUNDDOWN(SeznamPredavanj[ČAS ZAČETKA],10))*($B39<=SeznamPredavanj[ČAS KONCA]),SeznamPredavanj[EDINSTVENO]),SeznamPredavanj[EDINSTVENO],0),2),0)","v":0},{"$f":"IFERROR(INDEX(SeznamPredavanj[],MATCH(SUMPRODUCT((SeznamPredavanj[DAN]=UrnikPredavanj[[#Headers],[SOBOTA]])*(ROUNDDOWN($B39,10)>=ROUNDDOWN(SeznamPredavanj[ČAS ZAČETKA],10))*($B39<=SeznamPredavanj[ČAS KONCA]),SeznamPredavanj[EDINSTVENO]),SeznamPredavanj[EDINSTVENO],0),2),0)","v":0}]
[null,"17:00:00",{"$f":"IFERROR(INDEX(SeznamPredavanj[],MATCH(SUMPRODUCT((SeznamPredavanj[DAN]=UrnikPredavanj[[#Headers],[NEDELJA]])*(ROUNDDOWN($B40,10)>=ROUNDDOWN(SeznamPredavanj[ČAS ZAČETKA],10))*($B40<=SeznamPredavanj[ČAS KONCA]),SeznamPredavanj[EDINSTVENO]),SeznamPredavanj[EDINSTVENO],0),2),0)","v":0},{"$f":"IFERROR(INDEX(SeznamPredavanj[],MATCH(SUMPRODUCT((SeznamPredavanj[DAN]=UrnikPredavanj[[#Headers],[PONEDELJEK]])*(ROUNDDOWN($B40,10)>=ROUNDDOWN(SeznamPredavanj[ČAS ZAČETKA],10))*($B40<=SeznamPredavanj[ČAS KONCA]),SeznamPredavanj[EDINSTVENO]),SeznamPredavanj[EDINSTVENO],0),2),0)","v":"SP-111"},{"$f":"IFERROR(INDEX(SeznamPredavanj[],MATCH(SUMPRODUCT((SeznamPredavanj[DAN]=UrnikPredavanj[[#Headers],[TOREK]])*(ROUNDDOWN($B40,10)>=ROUNDDOWN(SeznamPredavanj[ČAS ZAČETKA],10))*($B40<=SeznamPredavanj[ČAS KONCA]),SeznamPredavanj[EDINSTVENO]),SeznamPredavanj[EDINSTVENO],0),2),0)","v":0},{"$f":"IFERROR(INDEX(SeznamPredavanj[],MATCH(SUMPRODUCT((SeznamPredavanj[DAN]=UrnikPredavanj[[#Headers],[SREDA]])*(ROUNDDOWN($B40,10)>=ROUNDDOWN(SeznamPredavanj[ČAS ZAČETKA],10))*($B40<=SeznamPredavanj[ČAS KONCA]),SeznamPredavanj[EDINSTVENO]),SeznamPredavanj[EDINSTVENO],0),2),0)","v":0},{"$f":"IFERROR(INDEX(SeznamPredavanj[],MATCH(SUMPRODUCT((SeznamPredavanj[DAN]=UrnikPredavanj[[#Headers],[ČETRTEK]])*(ROUNDDOWN($B40,10)>=ROUNDDOWN(SeznamPredavanj[ČAS ZAČETKA],10))*($B40<=SeznamPredavanj[ČAS KONCA]),SeznamPredavanj[EDINSTVENO]),SeznamPredavanj[EDINSTVENO],0),2),0)","v":0},{"$f":"IFERROR(INDEX(SeznamPredavanj[],MATCH(SUMPRODUCT((SeznamPredavanj[DAN]=UrnikPredavanj[[#Headers],[PETEK]])*(ROUNDDOWN($B40,10)>=ROUNDDOWN(SeznamPredavanj[ČAS ZAČETKA],10))*($B40<=SeznamPredavanj[ČAS KONCA]),SeznamPredavanj[EDINSTVENO]),SeznamPredavanj[EDINSTVENO],0),2),0)","v":0},{"$f":"IFERROR(INDEX(SeznamPredavanj[],MATCH(SUMPRODUCT((SeznamPredavanj[DAN]=UrnikPredavanj[[#Headers],[SOBOTA]])*(ROUNDDOWN($B40,10)>=ROUNDDOWN(SeznamPredavanj[ČAS ZAČETKA],10))*($B40<=SeznamPredavanj[ČAS KONCA]),SeznamPredavanj[EDINSTVENO]),SeznamPredavanj[EDINSTVENO],0),2),0)","v":0}]
[null,"17:15:00",{"$f":"IFERROR(INDEX(SeznamPredavanj[],MATCH(SUMPRODUCT((SeznamPredavanj[DAN]=UrnikPredavanj[[#Headers],[NEDELJA]])*(ROUNDDOWN($B41,10)>=ROUNDDOWN(SeznamPredavanj[ČAS ZAČETKA],10))*($B41<=SeznamPredavanj[ČAS KONCA]),SeznamPredavanj[EDINSTVENO]),SeznamPredavanj[EDINSTVENO],0),2),0)","v":0},{"$f":"IFERROR(INDEX(SeznamPredavanj[],MATCH(SUMPRODUCT((SeznamPredavanj[DAN]=UrnikPredavanj[[#Headers],[PONEDELJEK]])*(ROUNDDOWN($B41,10)>=ROUNDDOWN(SeznamPredavanj[ČAS ZAČETKA],10))*($B41<=SeznamPredavanj[ČAS KONCA]),SeznamPredavanj[EDINSTVENO]),SeznamPredavanj[EDINSTVENO],0),2),0)","v":0},{"$f":"IFERROR(INDEX(SeznamPredavanj[],MATCH(SUMPRODUCT((SeznamPredavanj[DAN]=UrnikPredavanj[[#Headers],[TOREK]])*(ROUNDDOWN($B41,10)>=ROUNDDOWN(SeznamPredavanj[ČAS ZAČETKA],10))*($B41<=SeznamPredavanj[ČAS KONCA]),SeznamPredavanj[EDINSTVENO]),SeznamPredavanj[EDINSTVENO],0),2),0)","v":0},{"$f":"IFERROR(INDEX(SeznamPredavanj[],MATCH(SUMPRODUCT((SeznamPredavanj[DAN]=UrnikPredavanj[[#Headers],[SREDA]])*(ROUNDDOWN($B41,10)>=ROUNDDOWN(SeznamPredavanj[ČAS ZAČETKA],10))*($B41<=SeznamPredavanj[ČAS KONCA]),SeznamPredavanj[EDINSTVENO]),SeznamPredavanj[EDINSTVENO],0),2),0)","v":0},{"$f":"IFERROR(INDEX(SeznamPredavanj[],MATCH(SUMPRODUCT((SeznamPredavanj[DAN]=UrnikPredavanj[[#Headers],[ČETRTEK]])*(ROUNDDOWN($B41,10)>=ROUNDDOWN(SeznamPredavanj[ČAS ZAČETKA],10))*($B41<=SeznamPredavanj[ČAS KONCA]),SeznamPredavanj[EDINSTVENO]),SeznamPredavanj[EDINSTVENO],0),2),0)","v":0},{"$f":"IFERROR(INDEX(SeznamPredavanj[],MATCH(SUMPRODUCT((SeznamPredavanj[DAN]=UrnikPredavanj[[#Headers],[PETEK]])*(ROUNDDOWN($B41,10)>=ROUNDDOWN(SeznamPredavanj[ČAS ZAČETKA],10))*($B41<=SeznamPredavanj[ČAS KONCA]),SeznamPredavanj[EDINSTVENO]),SeznamPredavanj[EDINSTVENO],0),2),0)","v":0},{"$f":"IFERROR(INDEX(SeznamPredavanj[],MATCH(SUMPRODUCT((SeznamPredavanj[DAN]=UrnikPredavanj[[#Headers],[SOBOTA]])*(ROUNDDOWN($B41,10)>=ROUNDDOWN(SeznamPredavanj[ČAS ZAČETKA],10))*($B41<=SeznamPredavanj[ČAS KONCA]),SeznamPredavanj[EDINSTVENO]),SeznamPredavanj[EDINSTVENO],0),2),0)","v":0}]
[null,"17:30:00",{"$f":"IFERROR(INDEX(SeznamPredavanj[],MATCH(SUMPRODUCT((SeznamPredavanj[DAN]=UrnikPredavanj[[#Headers],[NEDELJA]])*(ROUNDDOWN($B42,10)>=ROUNDDOWN(SeznamPredavanj[ČAS ZAČETKA],10))*($B42<=SeznamPredavanj[ČAS KONCA]),SeznamPredavanj[EDINSTVENO]),SeznamPredavanj[EDINSTVENO],0),2),0)","v":0},{"$f":"IFERROR(INDEX(SeznamPredavanj[],MATCH(SUMPRODUCT((SeznamPredavanj[DAN]=UrnikPredavanj[[#Headers],[PONEDELJEK]])*(ROUNDDOWN($B42,10)>=ROUNDDOWN(SeznamPredavanj[ČAS ZAČETKA],10))*($B42<=SeznamPredavanj[ČAS KONCA]),SeznamPredavanj[EDINSTVENO]),SeznamPredavanj[EDINSTVENO],0),2),0)","v":0},{"$f":"IFERROR(INDEX(SeznamPredavanj[],MATCH(SUMPRODUCT((SeznamPredavanj[DAN]=UrnikPredavanj[[#Headers],[TOREK]])*(ROUNDDOWN($B42,10)>=ROUNDDOWN(SeznamPredavanj[ČAS ZAČETKA],10))*($B42<=SeznamPredavanj[ČAS KONCA]),SeznamPredavanj[EDINSTVENO]),SeznamPredavanj[EDINSTVENO],0),2),0)","v":0},{"$f":"IFERROR(INDEX(SeznamPredavanj[],MATCH(SUMPRODUCT((SeznamPredavanj[DAN]=UrnikPredavanj[[#Headers],[SREDA]])*(ROUNDDOWN($B42,10)>=ROUNDDOWN(SeznamPredavanj[ČAS ZAČETKA],10))*($B42<=SeznamPredavanj[ČAS KONCA]),SeznamPredavanj[EDINSTVENO]),SeznamPredavanj[EDINSTVENO],0),2),0)","v":0},{"$f":"IFERROR(INDEX(SeznamPredavanj[],MATCH(SUMPRODUCT((SeznamPredavanj[DAN]=UrnikPredavanj[[#Headers],[ČETRTEK]])*(ROUNDDOWN($B42,10)>=ROUNDDOWN(SeznamPredavanj[ČAS ZAČETKA],10))*($B42<=SeznamPredavanj[ČAS KONCA]),SeznamPredavanj[EDINSTVENO]),SeznamPredavanj[EDINSTVENO],0),2),0)","v":0},{"$f":"IFERROR(INDEX(SeznamPredavanj[],MATCH(SUMPRODUCT((SeznamPredavanj[DAN]=UrnikPredavanj[[#Headers],[PETEK]])*(ROUNDDOWN($B42,10)>=ROUNDDOWN(SeznamPredavanj[ČAS ZAČETKA],10))*($B42<=SeznamPredavanj[ČAS KONCA]),SeznamPredavanj[EDINSTVENO]),SeznamPredavanj[EDINSTVENO],0),2),0)","v":0},{"$f":"IFERROR(INDEX(SeznamPredavanj[],MATCH(SUMPRODUCT((SeznamPredavanj[DAN]=UrnikPredavanj[[#Headers],[SOBOTA]])*(ROUNDDOWN($B42,10)>=ROUNDDOWN(SeznamPredavanj[ČAS ZAČETKA],10))*($B42<=SeznamPredavanj[ČAS KONCA]),SeznamPredavanj[EDINSTVENO]),SeznamPredavanj[EDINSTVENO],0),2),0)","v":0}]
[null,"17:45:00",{"$f":"IFERROR(INDEX(SeznamPredavanj[],MATCH(SUMPRODUCT((SeznamPredavanj[DAN]=UrnikPredavanj[[#Headers],[NEDELJA]])*(ROUNDDOWN($B43,10)>=ROUNDDOWN(SeznamPredavanj[ČAS ZAČETKA],10))*($B43<=SeznamPredavanj[ČAS KONCA]),SeznamPredavanj[EDINSTVENO]),SeznamPredavanj[EDINSTVENO],0),2),0)","v":0},{"$f":"IFERROR(INDEX(SeznamPredavanj[],MATCH(SUMPRODUCT((SeznamPredavanj[DAN]=UrnikPredavanj[[#Headers],[PONEDELJEK]])*(ROUNDDOWN($B43,10)>=ROUNDDOWN(SeznamPredavanj[ČAS ZAČETKA],10))*($B43<=SeznamPredavanj[ČAS KONCA]),SeznamPredavanj[EDINSTVENO]),SeznamPredavanj[EDINSTVENO],0),2),0)","v":0},{"$f":"IFERROR(INDEX(SeznamPredavanj[],MATCH(SUMPRODUCT((SeznamPredavanj[DAN]=UrnikPredavanj[[#Headers],[TOREK]])*(ROUNDDOWN($B43,10)>=ROUNDDOWN(SeznamPredavanj[ČAS ZAČETKA],10))*($B43<=SeznamPredavanj[ČAS KONCA]),SeznamPredavanj[EDINSTVENO]),SeznamPredavanj[EDINSTVENO],0),2),0)","v":0},{"$f":"IFERROR(INDEX(SeznamPredavanj[],MATCH(SUMPRODUCT((SeznamPredavanj[DAN]=UrnikPredavanj[[#Headers],[SREDA]])*(ROUNDDOWN($B43,10)>=ROUNDDOWN(SeznamPredavanj[ČAS ZAČETKA],10))*($B43<=SeznamPredavanj[ČAS KONCA]),SeznamPredavanj[EDINSTVENO]),SeznamPredavanj[EDINSTVENO],0),2),0)","v":0},{"$f":"IFERROR(INDEX(SeznamPredavanj[],MATCH(SUMPRODUCT((SeznamPredavanj[DAN]=UrnikPredavanj[[#Headers],[ČETRTEK]])*(ROUNDDOWN($B43,10)>=ROUNDDOWN(SeznamPredavanj[ČAS ZAČETKA],10))*($B43<=SeznamPredavanj[ČAS KONCA]),SeznamPredavanj[EDINSTVENO]),SeznamPredavanj[EDINSTVENO],0),2),0)","v":0},{"$f":"IFERROR(INDEX(SeznamPredavanj[],MATCH(SUMPRODUCT((SeznamPredavanj[DAN]=UrnikPredavanj[[#Headers],[PETEK]])*(ROUNDDOWN($B43,10)>=ROUNDDOWN(SeznamPredavanj[ČAS ZAČETKA],10))*($B43<=SeznamPredavanj[ČAS KONCA]),SeznamPredavanj[EDINSTVENO]),SeznamPredavanj[EDINSTVENO],0),2),0)","v":0},{"$f":"IFERROR(INDEX(SeznamPredavanj[],MATCH(SUMPRODUCT((SeznamPredavanj[DAN]=UrnikPredavanj[[#Headers],[SOBOTA]])*(ROUNDDOWN($B43,10)>=ROUNDDOWN(SeznamPredavanj[ČAS ZAČETKA],10))*($B43<=SeznamPredavanj[ČAS KONCA]),SeznamPredavanj[EDINSTVENO]),SeznamPredavanj[EDINSTVENO],0),2),0)","v":0}]
[null,"18:00:00",{"$f":"IFERROR(INDEX(SeznamPredavanj[],MATCH(SUMPRODUCT((SeznamPredavanj[DAN]=UrnikPredavanj[[#Headers],[NEDELJA]])*(ROUNDDOWN($B44,10)>=ROUNDDOWN(SeznamPredavanj[ČAS ZAČETKA],10))*($B44<=SeznamPredavanj[ČAS KONCA]),SeznamPredavanj[EDINSTVENO]),SeznamPredavanj[EDINSTVENO],0),2),0)","v":0},{"$f":"IFERROR(INDEX(SeznamPredavanj[],MATCH(SUMPRODUCT((SeznamPredavanj[DAN]=UrnikPredavanj[[#Headers],[PONEDELJEK]])*(ROUNDDOWN($B44,10)>=ROUNDDOWN(SeznamPredavanj[ČAS ZAČETKA],10))*($B44<=SeznamPredavanj[ČAS KONCA]),SeznamPredavanj[EDINSTVENO]),SeznamPredavanj[EDINSTVENO],0),2),0)","v":0},{"$f":"IFERROR(INDEX(SeznamPredavanj[],MATCH(SUMPRODUCT((SeznamPredavanj[DAN]=UrnikPredavanj[[#Headers],[TOREK]])*(ROUNDDOWN($B44,10)>=ROUNDDOWN(SeznamPredavanj[ČAS ZAČETKA],10))*($B44<=SeznamPredavanj[ČAS KONCA]),SeznamPredavanj[EDINSTVENO]),SeznamPredavanj[EDINSTVENO],0),2),0)","v":0},{"$f":"IFERROR(INDEX(SeznamPredavanj[],MATCH(SUMPRODUCT((SeznamPredavanj[DAN]=UrnikPredavanj[[#Headers],[SREDA]])*(ROUNDDOWN($B44,10)>=ROUNDDOWN(SeznamPredavanj[ČAS ZAČETKA],10))*($B44<=SeznamPredavanj[ČAS KONCA]),SeznamPredavanj[EDINSTVENO]),SeznamPredavanj[EDINSTVENO],0),2),0)","v":0},{"$f":"IFERROR(INDEX(SeznamPredavanj[],MATCH(SUMPRODUCT((SeznamPredavanj[DAN]=UrnikPredavanj[[#Headers],[ČETRTEK]])*(ROUNDDOWN($B44,10)>=ROUNDDOWN(SeznamPredavanj[ČAS ZAČETKA],10))*($B44<=SeznamPredavanj[ČAS KONCA]),SeznamPredavanj[EDINSTVENO]),SeznamPredavanj[EDINSTVENO],0),2),0)","v":0},{"$f":"IFERROR(INDEX(SeznamPredavanj[],MATCH(SUMPRODUCT((SeznamPredavanj[DAN]=UrnikPredavanj[[#Headers],[PETEK]])*(ROUNDDOWN($B44,10)>=ROUNDDOWN(SeznamPredavanj[ČAS ZAČETKA],10))*($B44<=SeznamPredavanj[ČAS KONCA]),SeznamPredavanj[EDINSTVENO]),SeznamPredavanj[EDINSTVENO],0),2),0)","v":0},{"$f":"IFERROR(INDEX(SeznamPredavanj[],MATCH(SUMPRODUCT((SeznamPredavanj[DAN]=UrnikPredavanj[[#Headers],[SOBOTA]])*(ROUNDDOWN($B44,10)>=ROUNDDOWN(SeznamPredavanj[ČAS ZAČETKA],10))*($B44<=SeznamPredavanj[ČAS KONCA]),SeznamPredavanj[EDINSTVENO]),SeznamPredavanj[EDINSTVENO],0),2),0)","v":0}]
[null,"18:15:00",{"$f":"IFERROR(INDEX(SeznamPredavanj[],MATCH(SUMPRODUCT((SeznamPredavanj[DAN]=UrnikPredavanj[[#Headers],[NEDELJA]])*(ROUNDDOWN($B45,10)>=ROUNDDOWN(SeznamPredavanj[ČAS ZAČETKA],10))*($B45<=SeznamPredavanj[ČAS KONCA]),SeznamPredavanj[EDINSTVENO]),SeznamPredavanj[EDINSTVENO],0),2),0)","v":0},{"$f":"IFERROR(INDEX(SeznamPredavanj[],MATCH(SUMPRODUCT((SeznamPredavanj[DAN]=UrnikPredavanj[[#Headers],[PONEDELJEK]])*(ROUNDDOWN($B45,10)>=ROUNDDOWN(SeznamPredavanj[ČAS ZAČETKA],10))*($B45<=SeznamPredavanj[ČAS KONCA]),SeznamPredavanj[EDINSTVENO]),SeznamPredavanj[EDINSTVENO],0),2),0)","v":0},{"$f":"IFERROR(INDEX(SeznamPredavanj[],MATCH(SUMPRODUCT((SeznamPredavanj[DAN]=UrnikPredavanj[[#Headers],[TOREK]])*(ROUNDDOWN($B45,10)>=ROUNDDOWN(SeznamPredavanj[ČAS ZAČETKA],10))*($B45<=SeznamPredavanj[ČAS KONCA]),SeznamPredavanj[EDINSTVENO]),SeznamPredavanj[EDINSTVENO],0),2),0)","v":0},{"$f":"IFERROR(INDEX(SeznamPredavanj[],MATCH(SUMPRODUCT((SeznamPredavanj[DAN]=UrnikPredavanj[[#Headers],[SREDA]])*(ROUNDDOWN($B45,10)>=ROUNDDOWN(SeznamPredavanj[ČAS ZAČETKA],10))*($B45<=SeznamPredavanj[ČAS KONCA]),SeznamPredavanj[EDINSTVENO]),SeznamPredavanj[EDINSTVENO],0),2),0)","v":0},{"$f":"IFERROR(INDEX(SeznamPredavanj[],MATCH(SUMPRODUCT((SeznamPredavanj[DAN]=UrnikPredavanj[[#Headers],[ČETRTEK]])*(ROUNDDOWN($B45,10)>=ROUNDDOWN(SeznamPredavanj[ČAS ZAČETKA],10))*($B45<=SeznamPredavanj[ČAS KONCA]),SeznamPredavanj[EDINSTVENO]),SeznamPredavanj[EDINSTVENO],0),2),0)","v":0},{"$f":"IFERROR(INDEX(SeznamPredavanj[],MATCH(SUMPRODUCT((SeznamPredavanj[DAN]=UrnikPredavanj[[#Headers],[PETEK]])*(ROUNDDOWN($B45,10)>=ROUNDDOWN(SeznamPredavanj[ČAS ZAČETKA],10))*($B45<=SeznamPredavanj[ČAS KONCA]),SeznamPredavanj[EDINSTVENO]),SeznamPredavanj[EDINSTVENO],0),2),0)","v":0},{"$f":"IFERROR(INDEX(SeznamPredavanj[],MATCH(SUMPRODUCT((SeznamPredavanj[DAN]=UrnikPredavanj[[#Headers],[SOBOTA]])*(ROUNDDOWN($B45,10)>=ROUNDDOWN(SeznamPredavanj[ČAS ZAČETKA],10))*($B45<=SeznamPredavanj[ČAS KONCA]),SeznamPredavanj[EDINSTVENO]),SeznamPredavanj[EDINSTVENO],0),2),0)","v":0}]
[null,"18:30:00",{"$f":"IFERROR(INDEX(SeznamPredavanj[],MATCH(SUMPRODUCT((SeznamPredavanj[DAN]=UrnikPredavanj[[#Headers],[NEDELJA]])*(ROUNDDOWN($B46,10)>=ROUNDDOWN(SeznamPredavanj[ČAS ZAČETKA],10))*($B46<=SeznamPredavanj[ČAS KONCA]),SeznamPredavanj[EDINSTVENO]),SeznamPredavanj[EDINSTVENO],0),2),0)","v":0},{"$f":"IFERROR(INDEX(SeznamPredavanj[],MATCH(SUMPRODUCT((SeznamPredavanj[DAN]=UrnikPredavanj[[#Headers],[PONEDELJEK]])*(ROUNDDOWN($B46,10)>=ROUNDDOWN(SeznamPredavanj[ČAS ZAČETKA],10))*($B46<=SeznamPredavanj[ČAS KONCA]),SeznamPredavanj[EDINSTVENO]),SeznamPredavanj[EDINSTVENO],0),2),0)","v":0},{"$f":"IFERROR(INDEX(SeznamPredavanj[],MATCH(SUMPRODUCT((SeznamPredavanj[DAN]=UrnikPredavanj[[#Headers],[TOREK]])*(ROUNDDOWN($B46,10)>=ROUNDDOWN(SeznamPredavanj[ČAS ZAČETKA],10))*($B46<=SeznamPredavanj[ČAS KONCA]),SeznamPredavanj[EDINSTVENO]),SeznamPredavanj[EDINSTVENO],0),2),0)","v":0},{"$f":"IFERROR(INDEX(SeznamPredavanj[],MATCH(SUMPRODUCT((SeznamPredavanj[DAN]=UrnikPredavanj[[#Headers],[SREDA]])*(ROUNDDOWN($B46,10)>=ROUNDDOWN(SeznamPredavanj[ČAS ZAČETKA],10))*($B46<=SeznamPredavanj[ČAS KONCA]),SeznamPredavanj[EDINSTVENO]),SeznamPredavanj[EDINSTVENO],0),2),0)","v":0},{"$f":"IFERROR(INDEX(SeznamPredavanj[],MATCH(SUMPRODUCT((SeznamPredavanj[DAN]=UrnikPredavanj[[#Headers],[ČETRTEK]])*(ROUNDDOWN($B46,10)>=ROUNDDOWN(SeznamPredavanj[ČAS ZAČETKA],10))*($B46<=SeznamPredavanj[ČAS KONCA]),SeznamPredavanj[EDINSTVENO]),SeznamPredavanj[EDINSTVENO],0),2),0)","v":0},{"$f":"IFERROR(INDEX(SeznamPredavanj[],MATCH(SUMPRODUCT((SeznamPredavanj[DAN]=UrnikPredavanj[[#Headers],[PETEK]])*(ROUNDDOWN($B46,10)>=ROUNDDOWN(SeznamPredavanj[ČAS ZAČETKA],10))*($B46<=SeznamPredavanj[ČAS KONCA]),SeznamPredavanj[EDINSTVENO]),SeznamPredavanj[EDINSTVENO],0),2),0)","v":0},{"$f":"IFERROR(INDEX(SeznamPredavanj[],MATCH(SUMPRODUCT((SeznamPredavanj[DAN]=UrnikPredavanj[[#Headers],[SOBOTA]])*(ROUNDDOWN($B46,10)>=ROUNDDOWN(SeznamPredavanj[ČAS ZAČETKA],10))*($B46<=SeznamPredavanj[ČAS KONCA]),SeznamPredavanj[EDINSTVENO]),SeznamPredavanj[EDINSTVENO],0),2),0)","v":0}]
[null,"18:45:00",{"$f":"IFERROR(INDEX(SeznamPredavanj[],MATCH(SUMPRODUCT((SeznamPredavanj[DAN]=UrnikPredavanj[[#Headers],[NEDELJA]])*(ROUNDDOWN($B47,10)>=ROUNDDOWN(SeznamPredavanj[ČAS ZAČETKA],10))*($B47<=SeznamPredavanj[ČAS KONCA]),SeznamPredavanj[EDINSTVENO]),SeznamPredavanj[EDINSTVENO],0),2),0)","v":0},{"$f":"IFERROR(INDEX(SeznamPredavanj[],MATCH(SUMPRODUCT((SeznamPredavanj[DAN]=UrnikPredavanj[[#Headers],[PONEDELJEK]])*(ROUNDDOWN($B47,10)>=ROUNDDOWN(SeznamPredavanj[ČAS ZAČETKA],10))*($B47<=SeznamPredavanj[ČAS KONCA]),SeznamPredavanj[EDINSTVENO]),SeznamPredavanj[EDINSTVENO],0),2),0)","v":0},{"$f":"IFERROR(INDEX(SeznamPredavanj[],MATCH(SUMPRODUCT((SeznamPredavanj[DAN]=UrnikPredavanj[[#Headers],[TOREK]])*(ROUNDDOWN($B47,10)>=ROUNDDOWN(SeznamPredavanj[ČAS ZAČETKA],10))*($B47<=SeznamPredavanj[ČAS KONCA]),SeznamPredavanj[EDINSTVENO]),SeznamPredavanj[EDINSTVENO],0),2),0)","v":0},{"$f":"IFERROR(INDEX(SeznamPredavanj[],MATCH(SUMPRODUCT((SeznamPredavanj[DAN]=UrnikPredavanj[[#Headers],[SREDA]])*(ROUNDDOWN($B47,10)>=ROUNDDOWN(SeznamPredavanj[ČAS ZAČETKA],10))*($B47<=SeznamPredavanj[ČAS KONCA]),SeznamPredavanj[EDINSTVENO]),SeznamPredavanj[EDINSTVENO],0),2),0)","v":0},{"$f":"IFERROR(INDEX(SeznamPredavanj[],MATCH(SUMPRODUCT((SeznamPredavanj[DAN]=UrnikPredavanj[[#Headers],[ČETRTEK]])*(ROUNDDOWN($B47,10)>=ROUNDDOWN(SeznamPredavanj[ČAS ZAČETKA],10))*($B47<=SeznamPredavanj[ČAS KONCA]),SeznamPredavanj[EDINSTVENO]),SeznamPredavanj[EDINSTVENO],0),2),0)","v":0},{"$f":"IFERROR(INDEX(SeznamPredavanj[],MATCH(SUMPRODUCT((SeznamPredavanj[DAN]=UrnikPredavanj[[#Headers],[PETEK]])*(ROUNDDOWN($B47,10)>=ROUNDDOWN(SeznamPredavanj[ČAS ZAČETKA],10))*($B47<=SeznamPredavanj[ČAS KONCA]),SeznamPredavanj[EDINSTVENO]),SeznamPredavanj[EDINSTVENO],0),2),0)","v":0},{"$f":"IFERROR(INDEX(SeznamPredavanj[],MATCH(SUMPRODUCT((SeznamPredavanj[DAN]=UrnikPredavanj[[#Headers],[SOBOTA]])*(ROUNDDOWN($B47,10)>=ROUNDDOWN(SeznamPredavanj[ČAS ZAČETKA],10))*($B47<=SeznamPredavanj[ČAS KONCA]),SeznamPredavanj[EDINSTVENO]),SeznamPredavanj[EDINSTVENO],0),2),0)","v":0}]
[null,"19:00:00",{"$f":"IFERROR(INDEX(SeznamPredavanj[],MATCH(SUMPRODUCT((SeznamPredavanj[DAN]=UrnikPredavanj[[#Headers],[NEDELJA]])*(ROUNDDOWN($B48,10)>=ROUNDDOWN(SeznamPredavanj[ČAS ZAČETKA],10))*($B48<=SeznamPredavanj[ČAS KONCA]),SeznamPredavanj[EDINSTVENO]),SeznamPredavanj[EDINSTVENO],0),2),0)","v":0},{"$f":"IFERROR(INDEX(SeznamPredavanj[],MATCH(SUMPRODUCT((SeznamPredavanj[DAN]=UrnikPredavanj[[#Headers],[PONEDELJEK]])*(ROUNDDOWN($B48,10)>=ROUNDDOWN(SeznamPredavanj[ČAS ZAČETKA],10))*($B48<=SeznamPredavanj[ČAS KONCA]),SeznamPredavanj[EDINSTVENO]),SeznamPredavanj[EDINSTVENO],0),2),0)","v":0},{"$f":"IFERROR(INDEX(SeznamPredavanj[],MATCH(SUMPRODUCT((SeznamPredavanj[DAN]=UrnikPredavanj[[#Headers],[TOREK]])*(ROUNDDOWN($B48,10)>=ROUNDDOWN(SeznamPredavanj[ČAS ZAČETKA],10))*($B48<=SeznamPredavanj[ČAS KONCA]),SeznamPredavanj[EDINSTVENO]),SeznamPredavanj[EDINSTVENO],0),2),0)","v":0},{"$f":"IFERROR(INDEX(SeznamPredavanj[],MATCH(SUMPRODUCT((SeznamPredavanj[DAN]=UrnikPredavanj[[#Headers],[SREDA]])*(ROUNDDOWN($B48,10)>=ROUNDDOWN(SeznamPredavanj[ČAS ZAČETKA],10))*($B48<=SeznamPredavanj[ČAS KONCA]),SeznamPredavanj[EDINSTVENO]),SeznamPredavanj[EDINSTVENO],0),2),0)","v":0},{"$f":"IFERROR(INDEX(SeznamPredavanj[],MATCH(SUMPRODUCT((SeznamPredavanj[DAN]=UrnikPredavanj[[#Headers],[ČETRTEK]])*(ROUNDDOWN($B48,10)>=ROUNDDOWN(SeznamPredavanj[ČAS ZAČETKA],10))*($B48<=SeznamPredavanj[ČAS KONCA]),SeznamPredavanj[EDINSTVENO]),SeznamPredavanj[EDINSTVENO],0),2),0)","v":0},{"$f":"IFERROR(INDEX(SeznamPredavanj[],MATCH(SUMPRODUCT((SeznamPredavanj[DAN]=UrnikPredavanj[[#Headers],[PETEK]])*(ROUNDDOWN($B48,10)>=ROUNDDOWN(SeznamPredavanj[ČAS ZAČETKA],10))*($B48<=SeznamPredavanj[ČAS KONCA]),SeznamPredavanj[EDINSTVENO]),SeznamPredavanj[EDINSTVENO],0),2),0)","v":0},{"$f":"IFERROR(INDEX(SeznamPredavanj[],MATCH(SUMPRODUCT((SeznamPredavanj[DAN]=UrnikPredavanj[[#Headers],[SOBOTA]])*(ROUNDDOWN($B48,10)>=ROUNDDOWN(SeznamPredavanj[ČAS ZAČETKA],10))*($B48<=SeznamPredavanj[ČAS KONCA]),SeznamPredavanj[EDINSTVENO]),SeznamPredavanj[EDINSTVENO],0),2),0)","v":0}]
[null,"19:15:00",{"$f":"IFERROR(INDEX(SeznamPredavanj[],MATCH(SUMPRODUCT((SeznamPredavanj[DAN]=UrnikPredavanj[[#Headers],[NEDELJA]])*(ROUNDDOWN($B49,10)>=ROUNDDOWN(SeznamPredavanj[ČAS ZAČETKA],10))*($B49<=SeznamPredavanj[ČAS KONCA]),SeznamPredavanj[EDINSTVENO]),SeznamPredavanj[EDINSTVENO],0),2),0)","v":0},{"$f":"IFERROR(INDEX(SeznamPredavanj[],MATCH(SUMPRODUCT((SeznamPredavanj[DAN]=UrnikPredavanj[[#Headers],[PONEDELJEK]])*(ROUNDDOWN($B49,10)>=ROUNDDOWN(SeznamPredavanj[ČAS ZAČETKA],10))*($B49<=SeznamPredavanj[ČAS KONCA]),SeznamPredavanj[EDINSTVENO]),SeznamPredavanj[EDINSTVENO],0),2),0)","v":0},{"$f":"IFERROR(INDEX(SeznamPredavanj[],MATCH(SUMPRODUCT((SeznamPredavanj[DAN]=UrnikPredavanj[[#Headers],[TOREK]])*(ROUNDDOWN($B49,10)>=ROUNDDOWN(SeznamPredavanj[ČAS ZAČETKA],10))*($B49<=SeznamPredavanj[ČAS KONCA]),SeznamPredavanj[EDINSTVENO]),SeznamPredavanj[EDINSTVENO],0),2),0)","v":0},{"$f":"IFERROR(INDEX(SeznamPredavanj[],MATCH(SUMPRODUCT((SeznamPredavanj[DAN]=UrnikPredavanj[[#Headers],[SREDA]])*(ROUNDDOWN($B49,10)>=ROUNDDOWN(SeznamPredavanj[ČAS ZAČETKA],10))*($B49<=SeznamPredavanj[ČAS KONCA]),SeznamPredavanj[EDINSTVENO]),SeznamPredavanj[EDINSTVENO],0),2),0)","v":0},{"$f":"IFERROR(INDEX(SeznamPredavanj[],MATCH(SUMPRODUCT((SeznamPredavanj[DAN]=UrnikPredavanj[[#Headers],[ČETRTEK]])*(ROUNDDOWN($B49,10)>=ROUNDDOWN(SeznamPredavanj[ČAS ZAČETKA],10))*($B49<=SeznamPredavanj[ČAS KONCA]),SeznamPredavanj[EDINSTVENO]),SeznamPredavanj[EDINSTVENO],0),2),0)","v":0},{"$f":"IFERROR(INDEX(SeznamPredavanj[],MATCH(SUMPRODUCT((SeznamPredavanj[DAN]=UrnikPredavanj[[#Headers],[PETEK]])*(ROUNDDOWN($B49,10)>=ROUNDDOWN(SeznamPredavanj[ČAS ZAČETKA],10))*($B49<=SeznamPredavanj[ČAS KONCA]),SeznamPredavanj[EDINSTVENO]),SeznamPredavanj[EDINSTVENO],0),2),0)","v":0},{"$f":"IFERROR(INDEX(SeznamPredavanj[],MATCH(SUMPRODUCT((SeznamPredavanj[DAN]=UrnikPredavanj[[#Headers],[SOBOTA]])*(ROUNDDOWN($B49,10)>=ROUNDDOWN(SeznamPredavanj[ČAS ZAČETKA],10))*($B49<=SeznamPredavanj[ČAS KONCA]),SeznamPredavanj[EDINSTVENO]),SeznamPredavanj[EDINSTVENO],0),2),0)","v":0}]
[null,"19:30:00",{"$f":"IFERROR(INDEX(SeznamPredavanj[],MATCH(SUMPRODUCT((SeznamPredavanj[DAN]=UrnikPredavanj[[#Headers],[NEDELJA]])*(ROUNDDOWN($B50,10)>=ROUNDDOWN(SeznamPredavanj[ČAS ZAČETKA],10))*($B50<=SeznamPredavanj[ČAS KONCA]),SeznamPredavanj[EDINSTVENO]),SeznamPredavanj[EDINSTVENO],0),2),0)","v":0},{"$f":"IFERROR(INDEX(SeznamPredavanj[],MATCH(SUMPRODUCT((SeznamPredavanj[DAN]=UrnikPredavanj[[#Headers],[PONEDELJEK]])*(ROUNDDOWN($B50,10)>=ROUNDDOWN(SeznamPredavanj[ČAS ZAČETKA],10))*($B50<=SeznamPredavanj[ČAS KONCA]),SeznamPredavanj[EDINSTVENO]),SeznamPredavanj[EDINSTVENO],0),2),0)","v":0},{"$f":"IFERROR(INDEX(SeznamPredavanj[],MATCH(SUMPRODUCT((SeznamPredavanj[DAN]=UrnikPredavanj[[#Headers],[TOREK]])*(ROUNDDOWN($B50,10)>=ROUNDDOWN(SeznamPredavanj[ČAS ZAČETKA],10))*($B50<=SeznamPredavanj[ČAS KONCA]),SeznamPredavanj[EDINSTVENO]),SeznamPredavanj[EDINSTVENO],0),2),0)","v":0},{"$f":"IFERROR(INDEX(SeznamPredavanj[],MATCH(SUMPRODUCT((SeznamPredavanj[DAN]=UrnikPredavanj[[#Headers],[SREDA]])*(ROUNDDOWN($B50,10)>=ROUNDDOWN(SeznamPredavanj[ČAS ZAČETKA],10))*($B50<=SeznamPredavanj[ČAS KONCA]),SeznamPredavanj[EDINSTVENO]),SeznamPredavanj[EDINSTVENO],0),2),0)","v":0},{"$f":"IFERROR(INDEX(SeznamPredavanj[],MATCH(SUMPRODUCT((SeznamPredavanj[DAN]=UrnikPredavanj[[#Headers],[ČETRTEK]])*(ROUNDDOWN($B50,10)>=ROUNDDOWN(SeznamPredavanj[ČAS ZAČETKA],10))*($B50<=SeznamPredavanj[ČAS KONCA]),SeznamPredavanj[EDINSTVENO]),SeznamPredavanj[EDINSTVENO],0),2),0)","v":0},{"$f":"IFERROR(INDEX(SeznamPredavanj[],MATCH(SUMPRODUCT((SeznamPredavanj[DAN]=UrnikPredavanj[[#Headers],[PETEK]])*(ROUNDDOWN($B50,10)>=ROUNDDOWN(SeznamPredavanj[ČAS ZAČETKA],10))*($B50<=SeznamPredavanj[ČAS KONCA]),SeznamPredavanj[EDINSTVENO]),SeznamPredavanj[EDINSTVENO],0),2),0)","v":0},{"$f":"IFERROR(INDEX(SeznamPredavanj[],MATCH(SUMPRODUCT((SeznamPredavanj[DAN]=UrnikPredavanj[[#Headers],[SOBOTA]])*(ROUNDDOWN($B50,10)>=ROUNDDOWN(SeznamPredavanj[ČAS ZAČETKA],10))*($B50<=SeznamPredavanj[ČAS KONCA]),SeznamPredavanj[EDINSTVENO]),SeznamPredavanj[EDINSTVENO],0),2),0)","v":0}]
[null,"19:45:00",{"$f":"IFERROR(INDEX(SeznamPredavanj[],MATCH(SUMPRODUCT((SeznamPredavanj[DAN]=UrnikPredavanj[[#Headers],[NEDELJA]])*(ROUNDDOWN($B51,10)>=ROUNDDOWN(SeznamPredavanj[ČAS ZAČETKA],10))*($B51<=SeznamPredavanj[ČAS KONCA]),SeznamPredavanj[EDINSTVENO]),SeznamPredavanj[EDINSTVENO],0),2),0)","v":0},{"$f":"IFERROR(INDEX(SeznamPredavanj[],MATCH(SUMPRODUCT((SeznamPredavanj[DAN]=UrnikPredavanj[[#Headers],[PONEDELJEK]])*(ROUNDDOWN($B51,10)>=ROUNDDOWN(SeznamPredavanj[ČAS ZAČETKA],10))*($B51<=SeznamPredavanj[ČAS KONCA]),SeznamPredavanj[EDINSTVENO]),SeznamPredavanj[EDINSTVENO],0),2),0)","v":0},{"$f":"IFERROR(INDEX(SeznamPredavanj[],MATCH(SUMPRODUCT((SeznamPredavanj[DAN]=UrnikPredavanj[[#Headers],[TOREK]])*(ROUNDDOWN($B51,10)>=ROUNDDOWN(SeznamPredavanj[ČAS ZAČETKA],10))*($B51<=SeznamPredavanj[ČAS KONCA]),SeznamPredavanj[EDINSTVENO]),SeznamPredavanj[EDINSTVENO],0),2),0)","v":0},{"$f":"IFERROR(INDEX(SeznamPredavanj[],MATCH(SUMPRODUCT((SeznamPredavanj[DAN]=UrnikPredavanj[[#Headers],[SREDA]])*(ROUNDDOWN($B51,10)>=ROUNDDOWN(SeznamPredavanj[ČAS ZAČETKA],10))*($B51<=SeznamPredavanj[ČAS KONCA]),SeznamPredavanj[EDINSTVENO]),SeznamPredavanj[EDINSTVENO],0),2),0)","v":0},{"$f":"IFERROR(INDEX(SeznamPredavanj[],MATCH(SUMPRODUCT((SeznamPredavanj[DAN]=UrnikPredavanj[[#Headers],[ČETRTEK]])*(ROUNDDOWN($B51,10)>=ROUNDDOWN(SeznamPredavanj[ČAS ZAČETKA],10))*($B51<=SeznamPredavanj[ČAS KONCA]),SeznamPredavanj[EDINSTVENO]),SeznamPredavanj[EDINSTVENO],0),2),0)","v":0},{"$f":"IFERROR(INDEX(SeznamPredavanj[],MATCH(SUMPRODUCT((SeznamPredavanj[DAN]=UrnikPredavanj[[#Headers],[PETEK]])*(ROUNDDOWN($B51,10)>=ROUNDDOWN(SeznamPredavanj[ČAS ZAČETKA],10))*($B51<=SeznamPredavanj[ČAS KONCA]),SeznamPredavanj[EDINSTVENO]),SeznamPredavanj[EDINSTVENO],0),2),0)","v":0},{"$f":"IFERROR(INDEX(SeznamPredavanj[],MATCH(SUMPRODUCT((SeznamPredavanj[DAN]=UrnikPredavanj[[#Headers],[SOBOTA]])*(ROUNDDOWN($B51,10)>=ROUNDDOWN(SeznamPredavanj[ČAS ZAČETKA],10))*($B51<=SeznamPredavanj[ČAS KONCA]),SeznamPredavanj[EDINSTVENO]),SeznamPredavanj[EDINSTVENO],0),2),0)","v":0}]
[null,"20:00:00",{"$f":"IFERROR(INDEX(SeznamPredavanj[],MATCH(SUMPRODUCT((SeznamPredavanj[DAN]=UrnikPredavanj[[#Headers],[NEDELJA]])*(ROUNDDOWN($B52,10)>=ROUNDDOWN(SeznamPredavanj[ČAS ZAČETKA],10))*($B52<=SeznamPredavanj[ČAS KONCA]),SeznamPredavanj[EDINSTVENO]),SeznamPredavanj[EDINSTVENO],0),2),0)","v":0},{"$f":"IFERROR(INDEX(SeznamPredavanj[],MATCH(SUMPRODUCT((SeznamPredavanj[DAN]=UrnikPredavanj[[#Headers],[PONEDELJEK]])*(ROUNDDOWN($B52,10)>=ROUNDDOWN(SeznamPredavanj[ČAS ZAČETKA],10))*($B52<=SeznamPredavanj[ČAS KONCA]),SeznamPredavanj[EDINSTVENO]),SeznamPredavanj[EDINSTVENO],0),2),0)","v":0},{"$f":"IFERROR(INDEX(SeznamPredavanj[],MATCH(SUMPRODUCT((SeznamPredavanj[DAN]=UrnikPredavanj[[#Headers],[TOREK]])*(ROUNDDOWN($B52,10)>=ROUNDDOWN(SeznamPredavanj[ČAS ZAČETKA],10))*($B52<=SeznamPredavanj[ČAS KONCA]),SeznamPredavanj[EDINSTVENO]),SeznamPredavanj[EDINSTVENO],0),2),0)","v":0},{"$f":"IFERROR(INDEX(SeznamPredavanj[],MATCH(SUMPRODUCT((SeznamPredavanj[DAN]=UrnikPredavanj[[#Headers],[SREDA]])*(ROUNDDOWN($B52,10)>=ROUNDDOWN(SeznamPredavanj[ČAS ZAČETKA],10))*($B52<=SeznamPredavanj[ČAS KONCA]),SeznamPredavanj[EDINSTVENO]),SeznamPredavanj[EDINSTVENO],0),2),0)","v":0},{"$f":"IFERROR(INDEX(SeznamPredavanj[],MATCH(SUMPRODUCT((SeznamPredavanj[DAN]=UrnikPredavanj[[#Headers],[ČETRTEK]])*(ROUNDDOWN($B52,10)>=ROUNDDOWN(SeznamPredavanj[ČAS ZAČETKA],10))*($B52<=SeznamPredavanj[ČAS KONCA]),SeznamPredavanj[EDINSTVENO]),SeznamPredavanj[EDINSTVENO],0),2),0)","v":0},{"$f":"IFERROR(INDEX(SeznamPredavanj[],MATCH(SUMPRODUCT((SeznamPredavanj[DAN]=UrnikPredavanj[[#Headers],[PETEK]])*(ROUNDDOWN($B52,10)>=ROUNDDOWN(SeznamPredavanj[ČAS ZAČETKA],10))*($B52<=SeznamPredavanj[ČAS KONCA]),SeznamPredavanj[EDINSTVENO]),SeznamPredavanj[EDINSTVENO],0),2),0)","v":0},{"$f":"IFERROR(INDEX(SeznamPredavanj[],MATCH(SUMPRODUCT((SeznamPredavanj[DAN]=UrnikPredavanj[[#Headers],[SOBOTA]])*(ROUNDDOWN($B52,10)>=ROUNDDOWN(SeznamPredavanj[ČAS ZAČETKA],10))*($B52<=SeznamPredavanj[ČAS KONCA]),SeznamPredavanj[EDINSTVENO]),SeznamPredavanj[EDINSTVENO],0),2),0)","v":0}]
[null,"20:15:00",{"$f":"IFERROR(INDEX(SeznamPredavanj[],MATCH(SUMPRODUCT((SeznamPredavanj[DAN]=UrnikPredavanj[[#Headers],[NEDELJA]])*(ROUNDDOWN($B53,10)>=ROUNDDOWN(SeznamPredavanj[ČAS ZAČETKA],10))*($B53<=SeznamPredavanj[ČAS KONCA]),SeznamPredavanj[EDINSTVENO]),SeznamPredavanj[EDINSTVENO],0),2),0)","v":0},{"$f":"IFERROR(INDEX(SeznamPredavanj[],MATCH(SUMPRODUCT((SeznamPredavanj[DAN]=UrnikPredavanj[[#Headers],[PONEDELJEK]])*(ROUNDDOWN($B53,10)>=ROUNDDOWN(SeznamPredavanj[ČAS ZAČETKA],10))*($B53<=SeznamPredavanj[ČAS KONCA]),SeznamPredavanj[EDINSTVENO]),SeznamPredavanj[EDINSTVENO],0),2),0)","v":0},{"$f":"IFERROR(INDEX(SeznamPredavanj[],MATCH(SUMPRODUCT((SeznamPredavanj[DAN]=UrnikPredavanj[[#Headers],[TOREK]])*(ROUNDDOWN($B53,10)>=ROUNDDOWN(SeznamPredavanj[ČAS ZAČETKA],10))*($B53<=SeznamPredavanj[ČAS KONCA]),SeznamPredavanj[EDINSTVENO]),SeznamPredavanj[EDINSTVENO],0),2),0)","v":0},{"$f":"IFERROR(INDEX(SeznamPredavanj[],MATCH(SUMPRODUCT((SeznamPredavanj[DAN]=UrnikPredavanj[[#Headers],[SREDA]])*(ROUNDDOWN($B53,10)>=ROUNDDOWN(SeznamPredavanj[ČAS ZAČETKA],10))*($B53<=SeznamPredavanj[ČAS KONCA]),SeznamPredavanj[EDINSTVENO]),SeznamPredavanj[EDINSTVENO],0),2),0)","v":0},{"$f":"IFERROR(INDEX(SeznamPredavanj[],MATCH(SUMPRODUCT((SeznamPredavanj[DAN]=UrnikPredavanj[[#Headers],[ČETRTEK]])*(ROUNDDOWN($B53,10)>=ROUNDDOWN(SeznamPredavanj[ČAS ZAČETKA],10))*($B53<=SeznamPredavanj[ČAS KONCA]),SeznamPredavanj[EDINSTVENO]),SeznamPredavanj[EDINSTVENO],0),2),0)","v":0},{"$f":"IFERROR(INDEX(SeznamPredavanj[],MATCH(SUMPRODUCT((SeznamPredavanj[DAN]=UrnikPredavanj[[#Headers],[PETEK]])*(ROUNDDOWN($B53,10)>=ROUNDDOWN(SeznamPredavanj[ČAS ZAČETKA],10))*($B53<=SeznamPredavanj[ČAS KONCA]),SeznamPredavanj[EDINSTVENO]),SeznamPredavanj[EDINSTVENO],0),2),0)","v":0},{"$f":"IFERROR(INDEX(SeznamPredavanj[],MATCH(SUMPRODUCT((SeznamPredavanj[DAN]=UrnikPredavanj[[#Headers],[SOBOTA]])*(ROUNDDOWN($B53,10)>=ROUNDDOWN(SeznamPredavanj[ČAS ZAČETKA],10))*($B53<=SeznamPredavanj[ČAS KONCA]),SeznamPredavanj[EDINSTVENO]),SeznamPredavanj[EDINSTVENO],0),2),0)","v":0}]
[null,"20:30:00",{"$f":"IFERROR(INDEX(SeznamPredavanj[],MATCH(SUMPRODUCT((SeznamPredavanj[DAN]=UrnikPredavanj[[#Headers],[NEDELJA]])*(ROUNDDOWN($B54,10)>=ROUNDDOWN(SeznamPredavanj[ČAS ZAČETKA],10))*($B54<=SeznamPredavanj[ČAS KONCA]),SeznamPredavanj[EDINSTVENO]),SeznamPredavanj[EDINSTVENO],0),2),0)","v":0},{"$f":"IFERROR(INDEX(SeznamPredavanj[],MATCH(SUMPRODUCT((SeznamPredavanj[DAN]=UrnikPredavanj[[#Headers],[PONEDELJEK]])*(ROUNDDOWN($B54,10)>=ROUNDDOWN(SeznamPredavanj[ČAS ZAČETKA],10))*($B54<=SeznamPredavanj[ČAS KONCA]),SeznamPredavanj[EDINSTVENO]),SeznamPredavanj[EDINSTVENO],0),2),0)","v":0},{"$f":"IFERROR(INDEX(SeznamPredavanj[],MATCH(SUMPRODUCT((SeznamPredavanj[DAN]=UrnikPredavanj[[#Headers],[TOREK]])*(ROUNDDOWN($B54,10)>=ROUNDDOWN(SeznamPredavanj[ČAS ZAČETKA],10))*($B54<=SeznamPredavanj[ČAS KONCA]),SeznamPredavanj[EDINSTVENO]),SeznamPredavanj[EDINSTVENO],0),2),0)","v":0},{"$f":"IFERROR(INDEX(SeznamPredavanj[],MATCH(SUMPRODUCT((SeznamPredavanj[DAN]=UrnikPredavanj[[#Headers],[SREDA]])*(ROUNDDOWN($B54,10)>=ROUNDDOWN(SeznamPredavanj[ČAS ZAČETKA],10))*($B54<=SeznamPredavanj[ČAS KONCA]),SeznamPredavanj[EDINSTVENO]),SeznamPredavanj[EDINSTVENO],0),2),0)","v":0},{"$f":"IFERROR(INDEX(SeznamPredavanj[],MATCH(SUMPRODUCT((SeznamPredavanj[DAN]=UrnikPredavanj[[#Headers],[ČETRTEK]])*(ROUNDDOWN($B54,10)>=ROUNDDOWN(SeznamPredavanj[ČAS ZAČETKA],10))*($B54<=SeznamPredavanj[ČAS KONCA]),SeznamPredavanj[EDINSTVENO]),SeznamPredavanj[EDINSTVENO],0),2),0)","v":0},{"$f":"IFERROR(INDEX(SeznamPredavanj[],MATCH(SUMPRODUCT((SeznamPredavanj[DAN]=UrnikPredavanj[[#Headers],[PETEK]])*(ROUNDDOWN($B54,10)>=ROUNDDOWN(SeznamPredavanj[ČAS ZAČETKA],10))*($B54<=SeznamPredavanj[ČAS KONCA]),SeznamPredavanj[EDINSTVENO]),SeznamPredavanj[EDINSTVENO],0),2),0)","v":0},{"$f":"IFERROR(INDEX(SeznamPredavanj[],MATCH(SUMPRODUCT((SeznamPredavanj[DAN]=UrnikPredavanj[[#Headers],[SOBOTA]])*(ROUNDDOWN($B54,10)>=ROUNDDOWN(SeznamPredavanj[ČAS ZAČETKA],10))*($B54<=SeznamPredavanj[ČAS KONCA]),SeznamPredavanj[EDINSTVENO]),SeznamPredavanj[EDINSTVENO],0),2),0)","v":0}]
[null,"20:45:00",{"$f":"IFERROR(INDEX(SeznamPredavanj[],MATCH(SUMPRODUCT((SeznamPredavanj[DAN]=UrnikPredavanj[[#Headers],[NEDELJA]])*(ROUNDDOWN($B55,10)>=ROUNDDOWN(SeznamPredavanj[ČAS ZAČETKA],10))*($B55<=SeznamPredavanj[ČAS KONCA]),SeznamPredavanj[EDINSTVENO]),SeznamPredavanj[EDINSTVENO],0),2),0)","v":0},{"$f":"IFERROR(INDEX(SeznamPredavanj[],MATCH(SUMPRODUCT((SeznamPredavanj[DAN]=UrnikPredavanj[[#Headers],[PONEDELJEK]])*(ROUNDDOWN($B55,10)>=ROUNDDOWN(SeznamPredavanj[ČAS ZAČETKA],10))*($B55<=SeznamPredavanj[ČAS KONCA]),SeznamPredavanj[EDINSTVENO]),SeznamPredavanj[EDINSTVENO],0),2),0)","v":0},{"$f":"IFERROR(INDEX(SeznamPredavanj[],MATCH(SUMPRODUCT((SeznamPredavanj[DAN]=UrnikPredavanj[[#Headers],[TOREK]])*(ROUNDDOWN($B55,10)>=ROUNDDOWN(SeznamPredavanj[ČAS ZAČETKA],10))*($B55<=SeznamPredavanj[ČAS KONCA]),SeznamPredavanj[EDINSTVENO]),SeznamPredavanj[EDINSTVENO],0),2),0)","v":0},{"$f":"IFERROR(INDEX(SeznamPredavanj[],MATCH(SUMPRODUCT((SeznamPredavanj[DAN]=UrnikPredavanj[[#Headers],[SREDA]])*(ROUNDDOWN($B55,10)>=ROUNDDOWN(SeznamPredavanj[ČAS ZAČETKA],10))*($B55<=SeznamPredavanj[ČAS KONCA]),SeznamPredavanj[EDINSTVENO]),SeznamPredavanj[EDINSTVENO],0),2),0)","v":0},{"$f":"IFERROR(INDEX(SeznamPredavanj[],MATCH(SUMPRODUCT((SeznamPredavanj[DAN]=UrnikPredavanj[[#Headers],[ČETRTEK]])*(ROUNDDOWN($B55,10)>=ROUNDDOWN(SeznamPredavanj[ČAS ZAČETKA],10))*($B55<=SeznamPredavanj[ČAS KONCA]),SeznamPredavanj[EDINSTVENO]),SeznamPredavanj[EDINSTVENO],0),2),0)","v":0},{"$f":"IFERROR(INDEX(SeznamPredavanj[],MATCH(SUMPRODUCT((SeznamPredavanj[DAN]=UrnikPredavanj[[#Headers],[PETEK]])*(ROUNDDOWN($B55,10)>=ROUNDDOWN(SeznamPredavanj[ČAS ZAČETKA],10))*($B55<=SeznamPredavanj[ČAS KONCA]),SeznamPredavanj[EDINSTVENO]),SeznamPredavanj[EDINSTVENO],0),2),0)","v":0},{"$f":"IFERROR(INDEX(SeznamPredavanj[],MATCH(SUMPRODUCT((SeznamPredavanj[DAN]=UrnikPredavanj[[#Headers],[SOBOTA]])*(ROUNDDOWN($B55,10)>=ROUNDDOWN(SeznamPredavanj[ČAS ZAČETKA],10))*($B55<=SeznamPredavanj[ČAS KONCA]),SeznamPredavanj[EDINSTVENO]),SeznamPredavanj[EDINSTVENO],0),2),0)","v":0}]
[null,"21:00:00",{"$f":"IFERROR(INDEX(SeznamPredavanj[],MATCH(SUMPRODUCT((SeznamPredavanj[DAN]=UrnikPredavanj[[#Headers],[NEDELJA]])*(ROUNDDOWN($B56,10)>=ROUNDDOWN(SeznamPredavanj[ČAS ZAČETKA],10))*($B56<=SeznamPredavanj[ČAS KONCA]),SeznamPredavanj[EDINSTVENO]),SeznamPredavanj[EDINSTVENO],0),2),0)","v":0},{"$f":"IFERROR(INDEX(SeznamPredavanj[],MATCH(SUMPRODUCT((SeznamPredavanj[DAN]=UrnikPredavanj[[#Headers],[PONEDELJEK]])*(ROUNDDOWN($B56,10)>=ROUNDDOWN(SeznamPredavanj[ČAS ZAČETKA],10))*($B56<=SeznamPredavanj[ČAS KONCA]),SeznamPredavanj[EDINSTVENO]),SeznamPredavanj[EDINSTVENO],0),2),0)","v":0},{"$f":"IFERROR(INDEX(SeznamPredavanj[],MATCH(SUMPRODUCT((SeznamPredavanj[DAN]=UrnikPredavanj[[#Headers],[TOREK]])*(ROUNDDOWN($B56,10)>=ROUNDDOWN(SeznamPredavanj[ČAS ZAČETKA],10))*($B56<=SeznamPredavanj[ČAS KONCA]),SeznamPredavanj[EDINSTVENO]),SeznamPredavanj[EDINSTVENO],0),2),0)","v":0},{"$f":"IFERROR(INDEX(SeznamPredavanj[],MATCH(SUMPRODUCT((SeznamPredavanj[DAN]=UrnikPredavanj[[#Headers],[SREDA]])*(ROUNDDOWN($B56,10)>=ROUNDDOWN(SeznamPredavanj[ČAS ZAČETKA],10))*($B56<=SeznamPredavanj[ČAS KONCA]),SeznamPredavanj[EDINSTVENO]),SeznamPredavanj[EDINSTVENO],0),2),0)","v":0},{"$f":"IFERROR(INDEX(SeznamPredavanj[],MATCH(SUMPRODUCT((SeznamPredavanj[DAN]=UrnikPredavanj[[#Headers],[ČETRTEK]])*(ROUNDDOWN($B56,10)>=ROUNDDOWN(SeznamPredavanj[ČAS ZAČETKA],10))*($B56<=SeznamPredavanj[ČAS KONCA]),SeznamPredavanj[EDINSTVENO]),SeznamPredavanj[EDINSTVENO],0),2),0)","v":0},{"$f":"IFERROR(INDEX(SeznamPredavanj[],MATCH(SUMPRODUCT((SeznamPredavanj[DAN]=UrnikPredavanj[[#Headers],[PETEK]])*(ROUNDDOWN($B56,10)>=ROUNDDOWN(SeznamPredavanj[ČAS ZAČETKA],10))*($B56<=SeznamPredavanj[ČAS KONCA]),SeznamPredavanj[EDINSTVENO]),SeznamPredavanj[EDINSTVENO],0),2),0)","v":0},{"$f":"IFERROR(INDEX(SeznamPredavanj[],MATCH(SUMPRODUCT((SeznamPredavanj[DAN]=UrnikPredavanj[[#Headers],[SOBOTA]])*(ROUNDDOWN($B56,10)>=ROUNDDOWN(SeznamPredavanj[ČAS ZAČETKA],10))*($B56<=SeznamPredavanj[ČAS KONCA]),SeznamPredavanj[EDINSTVENO]),SeznamPredavanj[EDINSTVENO],0),2),0)","v":0}]

{"sheet":"Seznam predavanj","index":1,"n_rows":10,"n_cols":8,"rows_kept":10,"merged":[[0,1,0,5],[0,6,0,7]]}
[null,"SEZNAM PREDAVANJ",{"$nulls":4},"Urnik predavanj"]
[null,"PREDAVANJE","ID","DAN","LOKACIJA","ČAS ZAČETKA","ČAS KONCA","EDINSTVENO"]
[null,"Tehnika","VR-121","PONEDELJEK","Stavba A","13:00:00","14:00:00",{"$f":"ROW()-ROW(SeznamPredavanj[[#Headers],[EDINSTVENO]])","v":1}]
[null,"Tehnika","VR-121","SREDA","Stavba A","13:00:00","14:00:00",{"$f":"ROW()-ROW(SeznamPredavanj[[#Headers],[EDINSTVENO]])","v":2}]
[null,"Javno nastopanje","SP-111","PONEDELJEK","Stavba B","16:00:00","17:00:00",{"$f":"ROW()-ROW(SeznamPredavanj[[#Headers],[EDINSTVENO]])","v":3}]
[null,"Skrb za zdravje","HPE-295","TOREK","Stavba B","11:00:00","12:00:00",{"$f":"ROW()-ROW(SeznamPredavanj[[#Headers],[EDINSTVENO]])","v":4}]
[null,"Skrb za zdravje","HPE-295","ČETRTEK","Stavba B","11:00:00","12:00:00",{"$f":"ROW()-ROW(SeznamPredavanj[[#Headers],[EDINSTVENO]])","v":5}]
[null,"Algebra","MAT-113","PONEDELJEK","Stavba C","08:10:00","09:15:00",{"$f":"ROW()-ROW(SeznamPredavanj[[#Headers],[EDINSTVENO]])","v":6}]
[null,"Algebra","MAT-113","SREDA","Stavba C","08:10:00","09:15:00",{"$f":"ROW()-ROW(SeznamPredavanj[[#Headers],[EDINSTVENO]])","v":7}]
[null,"Algebra","MAT-113","PETEK","Stavba C","08:10:00","09:15:00",{"$f":"ROW()-ROW(SeznamPredavanj[[#Headers],[EDINSTVENO]])","v":8}]